Workbook

Sheet Topics
A1: Topic | B1: Sheet Link
A2: HT-z-lower | B2: =A2 -> HT-z-lower
A3: HT-z-Two-Tail | B3: HT-z-Two-Tail
A4: Summary NORM Functions | B4: Summary NORM Functions
A5: HT-t-upper | B5: HT-t-upper
A6: HT-t-lower | B6: HT-t-lower
A7: HT-t-Two-Tail | B7: HT-t-Two-Tail
A8: Summary T Functions | B8: Summary T Functions
A9: Proportions | B9: Proportions

Sheet Detailed Topics
A1: Video54: | B1: Excel 2013 Statistical Analysis #54: 1 Tail Left Mean Hypothesis Z Test: P-value & Critical Value
A2: Number | B2: Topic In Video and minute mark in Video. | C2: Time In Video | R2: Text
A3: =ROWS(A3:A$3) -> 1 | B3: =TRIM(REPLACE(R3,1,SEARCH(")",R3)+1,"")) -> Example of 1 tail test on the left (lower end) for mean catchup bottle weight when consumer group suspects that mean weight is below advertised amount, using critical value and p-value. See the Excel functions: COUNT, AVERAGE, ROUND, NORM.S.DIST and NORM.S.INV | C3: =TRIM(LEFT(R3,SEARCH(")",R3))) -> (00:10) | R3: (00:10) Example of 1 tail test on the left (lower end) for mean catchup bottle weight when consumer group suspects that mean weight is below advertised amount, using critical value and p-value. See the Excel functions: COUNT, AVERAGE, ROUND, NORM.S.DIST and NORM.S.INV
A5: Video55: | B5: Excel 2013 Statistical Analysis #55: 2 Tail Z Score Mean Hypothesis Testing P-value Critical Value
A6: Number | B6: Topic In Video and minute mark in Video. | C6: Time In Video | R6: Text
A7: =ROWS(A$7:A7) -> 1 | B7: =TRIM(REPLACE(R7,1,SEARCH(")",R7)+1,"")) -> Example of 2 tail test on the left (lower end) for mean catchup bottle weight when manager of bottle filling machine needs to check if the machine is filling accurately, using critical value and p-value. See the Excel functions: COUNT, AVERAGE, ROUND, NORM.S.DIST and NORM.S.INV | C7: =TRIM(LEFT(R7,SEARCH(")",R7))) -> (00:10) | R7: (00:10) Example of 2 tail test on the left (lower end) for mean catchup bottle weight when manager of bottle filling machine needs to check if the machine is filling accurately, using critical value and p-value. See the Excel functions: COUNT, AVERAGE, ROUND, NORM.S.DIST and NORM.S.INV
A9: Video56: | B9: Excel 2013 Statistical Analysis #56: NORM.S.DIST = p-value, NORM.S.INV = Critical Value Sigma Known
A10: Number | B10: Topic In Video and minute mark in Video. | C10: Time In Video | R10: Text
A11: =ROWS(A$11:A11) -> 1 | B11: =TRIM(REPLACE(R11,1,SEARCH(")",R11)+1,"")) -> Upper Tail Test: NORM.S.DIST for p-value, NORM.S.INV for Critical Value Sigma Known | C11: =TRIM(LEFT(R11,SEARCH(")",R11))) -> (00:11) | R11: (00:11) Upper Tail Test: NORM.S.DIST for p-value, NORM.S.INV for Critical Value Sigma Known
A12: =ROWS(A$11:A12) -> 2 | B12: =TRIM(REPLACE(R12,1,SEARCH(")",R12)+1,"")) -> Lower Tail Test: NORM.S.DIST for p-value, NORM.S.INV for Critical Value Sigma Known | C12: =TRIM(LEFT(R12,SEARCH(")",R12))) -> (03:38) | R12: (03:38) Lower Tail Test: NORM.S.DIST for p-value, NORM.S.INV for Critical Value Sigma Known
A13: =ROWS(A$11:A13) -> 3 | B13: Two Tail Test: NORM.S.DIST for p-value, NORM.S.INV for Critical Value Sigma Known | C13: (05:38) | R13: (05:38) Two Tail Test: NORM.S.DIST for p-value, NORM.S.INV for Critical Value Sigma Known
A15: Video57: | B15: Excel 2013 Statistical Analysis #57: 1 Tail Right Mean Hypothesis T Test P-value & Critical Value
A16: Number | B16: Topic In Video and minute mark in Video. | C16: Time In Video | R16: Text
A17: =ROWS(A$17:A17) -> 1 | B17: =TRIM(REPLACE(R17,1,SEARCH(")",R17)+1,"")) -> Sigma Not Known, T-Distribution, Hypothesis Testing on the upper end. Manufacturing Fuse Example. See COUNT, AVERAGE and STDEV.S functions. See T.DIST function for calculating p-value and T.INV for calculating Critical t value. | C17: =TRIM(LEFT(R17,SEARCH(")",R17))) -> (00:10) | R17: (00:10) Sigma Not Known, T-Distribution, Hypothesis Testing on the upper end. Manufacturing Fuse Example. See COUNT, AVERAGE and STDEV.S functions. See T.DIST function for calculating p-value and T.INV for calculating Critical t value.
A20: Video58: | B20: Excel 2013 Statistical Analysis #58: 1 Tail Left T Score Mean Hypothesis Test P-value Critical Value
A21: Number | B21: Topic In Video and minute mark in Video. | C21: Time In Video | R21: Text
A22: =ROWS(A$22:A22) -> 1 | B22: =TRIM(REPLACE(R22,1,SEARCH(")",R22)+1,"")) -> Sigma Not Known, T-Distribution, Hypothesis Testing on the upper end. Construction Company Example. See COUNT, AVERAGE and STDEV.S functions. See T.DIST and T.DIST.2T functions for calculating p-value and T.INV and T.INV.2T functions for calculating Critical t value. | C22: =TRIM(LEFT(R22,SEARCH(")",R22))) -> (00:10) | R22: (00:10) Sigma Not Known, T-Distribution, Hypothesis Testing on the upper end. Construction Company Example. See COUNT, AVERAGE and STDEV.S functions. See T.DIST and T.DIST.2T functions for calculating p-value and T.INV and T.INV.2T functions for calculating Critical t value.
A25: Video59: | B25: Excel 2013 Statistical Analysis #59: 2 Tail Mean Hypothesis T Test: P-value & Critical Value
A26: Number | B26: Topic In Video and minute mark in Video. | C26: Time In Video | R26: Text
A27: =ROWS(A$27:A27) -> 1 | B27: =TRIM(REPLACE(R27,1,SEARCH(")",R27)+1,"")) -> Sigma Not Known, T-Distribution, Hypothesis Testing for a two tail test. Seattle Auto Price Example. See COUNT, AVERAGE and STDEV.S functions. See T.DIST function for calculating p-value and T.INV for calculating Critical t value. | C27: =TRIM(LEFT(R27,SEARCH(")",R27))) -> (00:10) | R27: (00:10) Sigma Not Known, T-Distribution, Hypothesis Testing for a two tail test. Seattle Auto Price Example. See COUNT, AVERAGE and STDEV.S functions. See T.DIST function for calculating p-value and T.INV for calculating Critical t value.
A29: Video60: | B29: Excel 2013 Statistical Analysis #60: T.DIST, T.DIST.RT, T.DIST.2T, T.INV, T.INV.2T functions
A30: Number | B30: Topic In Video and minute mark in Video. | C30: Time In Video | R30: Text
A31: =ROWS(A$31:A31) -> 1 | B31: =TRIM(REPLACE(R31,1,SEARCH(")",R31)+1,"")) -> Upper Tail (Right) Test to calculate p-value and Critical Value for Hypothesis Test using T.DIST & T.DIST.RT functions for P-value and T.INV function for Critical Value. Also degrees of freedom, Standard Error and the Test Statistic. | C31: =TRIM(LEFT(R31,SEARCH(")",R31))) -> (00:29) | R31: (00:29) Upper Tail (Right) Test to calculate p-value and Critical Value for Hypothesis Test using T.DIST & T.DIST.RT functions for P-value and T.INV function for Critical Value. Also degrees of freedom, Standard Error and the Test Statistic.
A32: =ROWS(A$31:A32) -> 2 | B32: =TRIM(REPLACE(R32,1,SEARCH(")",R32)+1,"")) -> Lower Tail (Left) Test to calculate p-value and Critical Value for Hypothesis Test using T.DIST function for P-value and T.INV function for Critical Value. | C32: =TRIM(LEFT(R32,SEARCH(")",R32))) -> (04:32) | R32: (04:32) Lower Tail (Left) Test to calculate p-value and Critical Value for Hypothesis Test using T.DIST function for P-value and T.INV function for Critical Value.
A33: =ROWS(A$31:A33) -> 3 | B33: Two Tail Test to calculate p-value and Critical Value for Hypothesis Test using T.DIST & T.DIST.2T functions for P-value and T.INV & T.DIST.2T for Critical Value. | C33: (06:20) | R33: (06:20) Two Tail Test to calculate p-value and Critical Value for Hypothesis Test using T.DIST & T.DIST.2T functions for P-value and T.INV & T.DIST.2T for Critical Value.
A35: Video61: | B35: Excel 2013 Statistical Analysis #60: T.DIST, T.DIST.RT, T.DIST.2T, T.INV, T.INV.2T functions
A36: Number | B36: Topic In Video and minute mark in Video. | C36: Time In Video | R36: Text
A37: =ROWS(A$37:A37) -> 1 | B37: =TRIM(REPLACE(R37,1,SEARCH(")",R37)+1,"")) -> Hypothesis Test for Proportions using p-value or Critical Value. Example: Researcher who was skeptical of reported proportion of the number students know when the presidential election is; Test to see if there is significantly more than 15% of the students who know when the presidential election will be held. | C37: =TRIM(LEFT(R37,SEARCH(")",R37))) -> (00:11) | R37: (00:11) Hypothesis Test for Proportions using p-value or Critical Value. Example: Researcher who was skeptical of reported proportion of the number students know when the presidential election is; Test to see if there is significantly more than 15% of the students who know when the presidential election will be held.
A38: =ROWS(A$37:A38) -> 2 | B38: =TRIM(REPLACE(R38,1,SEARCH(")",R38)+1,"")) -> Point of view and Goal and set up Null and Alternative Hypothesis | C38: =TRIM(LEFT(R38,SEARCH(")",R38))) -> (02:25) | R38: (02:25) Point of view and Goal and set up Null and Alternative Hypothesis
A39: =ROWS(A$37:A39) -> 3 | B39: See COUNTIF function to calculate sample proportion. | C39: (04:20) | R39: (04:20) See COUNTIF function to calculate sample proportion.
A40: =ROWS(A$37:A40) -> 4 | B40: Calculate Standard Error | C40: (05:37) | R40: (05:37) Calculate Standard Error
A41: =ROWS(A$37:A41) -> 5 | B41: Calculate Z Test Statistic | C41: (06:30) | R41: (06:30) Calculate Z Test Statistic
A42: =ROWS(A$37:A42) -> 6 | B42: See the functions NORM.S.DIST to calculate p-value from a z-score. | C42: (07:11) | R42: (07:11) See the functions NORM.S.DIST to calculate p-value from a z-score.
A43: =ROWS(A$37:A43) -> 7 | B43: See NORM.S.INV to calculate the Critical value from the alpha probability of 0.01. | C43: (07:55) | R43: (07:55) See NORM.S.INV to calculate the Critical value from the alpha probability of 0.01.

Sheet HT-z-upper (an)
C1: Mew = population mean = μ | P1: One Tail To Left
C2: Sigma = population standard deviation = s | P2: One Tail To Right
C3: Standard Error = Standard Deviation for the Sampling distribution of Xbar = SE | P3: Two Tail
C4: Hypothesized Value of Population Mean = μ0 = Assumed Value of Population Mean used for testing procedure
C5: sample size = n
C6: Sample Mean = Xbar
C7: Sample Standard Deviation (for when sigma not known) = s
C8: Alpha = a = Risk of rejecting (Original Statement) H0 when it is actually true = Type 1 Error
C9: Test Statistic = Used to determine whether to reject H0 and accept Ha = Number of SE above or below hypothesized mean
C10: Use z test statistic if Sigma known or can be estimated, or you are significance Testing a Proportion and all 4 binomial tests have been met
C11: Use t test statistic if Sigma NOT known or can be estimated
C13: A statement from an official report said that Realtors make $85,000 a year (national mean). Researcher thinks that Realtors in the Des Moines area have a mean annual salary of more than 85,000 a year. At alpha = .05, sigma = $12,549, n = 36 and sample mean = $88,595, can we conclude that realtors in the Des Moines area make more than $85,000?
C15: Hypothesis Test (Significance Test)
B16: . | C16: Point of view: | D16: Researcher who believes that Des Moines realtors have an annual mean greater than $85,000
B17: . | C17: Considering: | D17: Population of Des Moines Realtors
B18: . | C18: Goal: | D18: Run Hypothesis test to provide statistical evidence to support the claim that Des Moines
B19: =IF(B18="","",".") -> . | D19: Realtors have an annual mean salary of more than $85,000. Mew > 85000 >>> 1 tail right
A20: Sample Salaries | C20: Step 1: List H0 and Ha | D20: H0 : μ | E20: <= | F20: =D26 -> 85000
A21: 98356 | D21: Ha : μ | E21: > | F21: =D26 -> 85000
A22: 120492
A23: 119398 | C23: Step 2: Select Alpha | D23: Alpha = | E23: 0.05 | F23: Alpha = a = Risk of rejecting H0 when it is actually true = Type 1 Error
A24: 92682 | F24: At alpha = 0.05, 5% risk of rejecting H0 even though it was true, if we reject Mew <= $85,000, about 5 out of 100 times we will be incorrect.
A25: 113284 | C25: Step 3: Draw Picture, Collect Data, Calculate Sample Statistics, Calculate Test Statistic
A26: 79398 | C26: Hypothesized Mean = μ0 = | D26: 85000
A27: 82503 | C27: Sigma = s = | D27: 12549
A28: 81485 | C28: Sample SD = s | D28: NA
A29: 84083 | C29: Test Statistic To Use: | D29: z | F29: =IF(D29="","",IF(D29="z","Because Sigma Known",IF(D29="t","Because Sigma NOT Known","Please Enter a z or t"))) -> Because Sigma Known
A30: 76384 | C30: sample size = n | D30: =COUNT(A21:A56) -> 36
A31: 86539 | C31: Sample Mean = Xbar | D31: =AVERAGE(A21:A56) -> 88595 | F31: =AVERAGE(values)
A32: 69894 | C32: Alpha = a = | D32: =E23 -> 0.05
A33: 67810 | C33: Type of Test | D33: One Tail To Right
A34: 84219 | C34: SE | D34: =D27/SQRT(D30) -> 2091.5 | F34: =IF(D29="","",IF(D29="z"," =Sigma/SQRT(n)",IF(D29="t"," =s/SQRT(n)",IF(OR(D29<>"z",D29<>"t"),".")))) -> =Sigma/SQRT(n) | H34: Standard Error = Standard Deviation for the Sampling distribution of Xbar = SE
A35: 90242 | C35: ="Test Statistic = "&IF(D29="z","z",IF(D29="t","t",""))&" =" -> Test Statistic = z = | D35: =(D31-D26)/D34 -> 1.718862061 | F35: =(Xbar - μ0)/SE | H35: Sample Error in numerator, Standard Deviations in Denominator = "How Many SD above or below Hypothesized Pop Mean
A36: 104294
A37: 86642 | C37: Step 4: Create p-value Rejection Rule and calculate p-value
A38: 85646 | C38: Rejection Rule: | D38: p-value <= alpha, Reject H0 and accept Ha , otherwise Fail to Reject H0
A39: 73286 | C39: p-value One Tail To Right | D39: =1-_xlfn.NORM.S.DIST(D35,1) -> 0.04281974591 | G39: =1-NORM.S.DIST(z,1) | I39: Probability of getting Test Statistic or higher
A40: 65074
A41: 77829 | C41: Step 4: Calculate Critical Value and Critical Value Rejection Rule
A42: 106881 | C42: Rejection Rule: | D42: Test Statistic >= Critical Value, Reject H0 and accept Ha , otherwise Fail to Reject H0
A43: 83221 | C43: Critical Value One Tail To Right | D43: =_xlfn.NORM.S.INV(1-D32) -> 1.644853627 | G43: =NORM.S.INV(1-alpha) | I43: This is the hurdle Point
A44: 88483
A45: 80998
A46: 84734 | C46: Step 5: Write Conclusion
A47: 126949 | B47: . | C47: Because the p-value of 0.043 <= alpha of 0.05, we reject H0 and accept Ha.
A48: 64085 | B48: . | C48: Because the test statistic of 1.72 >= critical value of 1.645, we reject H0 and accept Ha.
A49: 81469 | B49: . | C49: The statistical evidence suggests that the mean annual salary for realtors in Des Moines is
A50: 85769 | B50: =IF(B49="","",".") -> . | C50: greater than the national mean.
A51: 98864 | B51: . | C51: At an alpha of 0.05, our sample mean of $88,595 provides statistically significant evidence that
A52: 92132 | B52: =IF(B51="","",".") -> . | C52: the mean annual salary for realtors in Des Moines is greater than the national mean.
A53: 65025 | B53: . | C53: We do run a 5% risk of a Type 1 Error that we might say that the mean annual salary for | J53: False Positive: Reject H0 when it is true.
A54: 101594 | B54: =IF(B53="","",".") -> . | C54: realtors in Des Moines is greater than $85,00, when it is not greater than $85,000.
A55: 91250
A56: 98426

Sheet HT-z-lower
C1: Mew = population mean = μ | P1: One Tail To Left
C2: Sigma = population standard deviation = s | P2: One Tail To Right
C3: Standard Error = Standard Deviation for the Sampling distribution of Xbar = SE | P3: Two Tail
C4: Hypothesized Value of Population Mean = μ0 = Assumed Value of Population Mean used for testing procedure
C5: sample size = n
C6: Sample Mean = Xbar
C7: Sample Standard Deviation (for when sigma not known) = s
C8: Alpha = a = Risk of rejecting (Original Statement) H0 when it is actually true = Type 1 Error
C9: Test Statistic = Used to determine whether to reject H0 and accept Ha = Number of SE above or below hypothesized mean
C10: Use z test statistic if Sigma known or can be estimated, or you are significance Testing a Proportion and all 4 binomial tests have been met
C11: Use t test statistic if Sigma NOT known or can be estimated
C13: A bottle of "Yummy Red Catsup" is labeled as having 16 oz. of catsup. A consumers group in the Green Valley area believes that the bottles are filled with less than 16 oz and asks a government agency to investigate the underfilling. At the 0.05 significance level, can the government agency conclude that the bottle is being underfilled in the Green Valley area? (From the companies data they estimate the population standard deviation to be 0.5 oz.)
C15: Hypothesis Test (Significance Test)
C16: Point of view: | D16: Consumer group and government agency are concerned about underfilling and label accuracy.
C17: Considering: | D17: Population of catsup bottles in the Green River area.
C18: Goal: | D18: Run Hypothesis test to provide statistical evidence to support the claim that the bottles are
D19: being underfilled. | F19: <<<<<<< === One Tail to the Left
A20: oz. per Bottle | C20: Step 1: List H0 and Ha | D20: H0 : μ
A21: 16.58 | D21: Ha : μ
A22: 15.78
A23: 15.83 | C23: Step 2: Select Alpha | D23: Alpha = | F23: Alpha = a = Risk of rejecting H0 when it is actually true = Type 1 Error
A24: 16.56
A25: 15.24 | C25: Step 3: Draw Picture, Collect Data, Calculate Sample Statistics, Calculate Test Statistic
A26: 15.44 | C26: Hypothesized Mean = μ0 =
A27: 16.24 | C27: Sigma = s =
A28: 15.7 | C28: Sample SD = s
A29: 16.11 | C29: Test Statistic To Use: | F29: =IF(D29="","",IF(D29="z","Because Sigma Known",IF(D29="t","Because Sigma NOT Known","Please Enter a z or t"))) -> 
A30: 15.77 | C30: sample size = n
A31: 16.4 | C31: Sample Mean = Xbar | F31: =AVERAGE(values)
A32: 15.7 | C32: Alpha = a =
A33: 16.24 | C33: Type of Test
A34: 16.27 | C34: SE | F34: =IF(D29="","",IF(D29="z"," =Sigma/SQRT(n)",IF(D29="t"," =s/SQRT(n)",IF(OR(D29<>"z",D29<>"t"),".")))) ->  | H34: Standard Error = Standard Deviation for the Sampling distribution of Xbar = SE
A35: 16.08 | C35: ="Test Statistic = "&IF(D29="z","z",IF(D29="t","t",""))&" =" -> Test Statistic = = | F35: =(Xbar - μ0)/SE | H35: Sample Error in numerator, Standard Deviations in Denominator = "How Many SD above or below Hypothesized Pop Mean
A36: 16.19
A37: 15.86 | C37: Step 4: Create p-value Rejection Rule and calculate p-value
A38: 15.53 | C38: Rejection Rule: | D38: p-value <= alpha, Reject H0 and accept Ha , otherwise Fail to Reject H0
A39: 15.01 | C39: p-value One Tail To Left | F39: =NORM.S.DIST(z,1) | I39: Probability of getting Test Statistic or lower
A40: 15.39
A41: 15.53 | C41: Step 4: Calculate Critical Value and Critical Value Rejection Rule
A42: 15.3 | C42: Rejection Rule: | D42: Test Statistic <= Critical Value, Reject H0 and accept Ha , otherwise Fail to Reject H0
A43: 16.23 | C43: Critical Value One Tail To Left | F43: =NORM.S.INV(alpha) | I43: This is the hurdle Point
A44: 16.14
A45: 16.75
A46: 15.77 | C46: Step 5: Write Conclusion
A47: 15.43 | C47: Because our p-value of .21 is bigger than our alpha of .05, we Fail To Reject H0.
A48: 17.05 | C48: Because our tests statistic of -0.8 is bigger than our critical value of -1.645, we Fail To Reject H0.
A49: 15.31 | C49: The sample evidence suggests that the mean amount of catsup in the "Yummy Red Catsup"
A50: 16.89 | C50: bottles is not less than 16 oz.
A51: 15.95 | C51: At an alpha of 0.05 the sample mean of 15.96 oz. does not provide statistically significant
A52: 16.56 | C52: evidence to suggest that the bottles are being underfilled in the Green Valley area.
A53: 15.83 | C53: We do run the Beta Risk (Type 2 Error) of Failing to accept the Alternative (underfilling),
A54: 16.28 | C54: when the H0 was false. Not accept Ha, when it is true. | J54: False Negative: Not selecting Ha, when it is true.
A55: 16.21
A56: 15.98
A57: 15.13
A58: 16.1
A59: 15.43
A60: 16.69
A61: 15.99
A62: 16.06
A63: 16.01
A64: 15.34
A65: 16.25
A66: 16.05
A67: 16.13
A68: 15.72
A69: 15.63
A70: 16.19
A71: 15.63
A72: 15.87
A73: 16.31
A74: 16.27
A75: 15.78
A76: 15.72
A77: 16.31
A78: 16.73
A79: 16.46
A80: 16.18
A81: 15.17
A82: 16.2
A83: 16.97
A84: 15.62
A85: 15.27
A86: 15.49
A87: 16.63
A88: 15.33
A89: 15.42
A90: 15.83
A91: 15.28
A92: 16.32
A93: 17.12
A94: 15.66
A95: 15.07
A96: 16.03
A97: 16.04
A98: 16.44
A99: 16.41
A100: 15.55
A101: 15.87
A102: 15.23
A103: 15.59
A104: 15.14
A105: 16.26
A106: 16.11
A107: 16.86
A108: 15.92
A109: 15.53
A110: 16.18
A111: 15.85
A112: 16.29
A113: 15.7
A114: 16.25
A115: 15.1
A116: 15.89
A117: 15.77
A118: 15.87
A119: 16.13
A120: 17.08

Sheet HT-z-lower (an)
C1: Mew = population mean = μ | P1: One Tail To Left
C2: Sigma = population standard deviation = s | P2: One Tail To Right
C3: Standard Error = Standard Deviation for the Sampling distribution of Xbar = SE | P3: Two Tail
C4: Hypothesized Value of Population Mean = μ0 = Assumed Value of Population Mean used for testing procedure
C5: sample size = n
C6: Sample Mean = Xbar
C7: Sample Standard Deviation (for when sigma not known) = s
C8: Alpha = a = Risk of rejecting (Original Statement) H0 when it is actually true = Type 1 Error
C9: Test Statistic = Used to determine whether to reject H0 and accept Ha = Number of SE above or below hypothesized mean
C10: Use z test statistic if Sigma known or can be estimated, or you are significance Testing a Proportion and all 4 binomial tests have been met
C11: Use t test statistic if Sigma NOT known or can be estimated
C13: A bottle of "Yummy Red Catsup" is labeled as having 16 oz. of catsup. A consumers group in the Green Valley area believes that the bottles are filled with less than 16 oz and asks a government agency to investigate the underfilling. At the 0.05 significance level, can the government agency conclude that the bottle is being underfilled in the Green River area? (From the companies data they estimate the population standard deviation to be 0.5 oz.)
C15: Hypothesis Test (Significance Test)
B16: . | C16: Point of view: | D16: Consumer group and government agency are concerned about underfilling and label accuracy.
B17: . | C17: Considering: | D17: Population of catsup bottles in the Green River area.
B18: . | C18: Goal: | D18: Run Hypothesis test to provide statistical evidence to support the claim that the bottles are
B19: =IF(B18="","",".") -> . | D19: being underfilled. | F19: <<<<<<< === One Tail to the Left
A20: oz. per Bottle | C20: Step 1: List H0 and Ha | D20: H0 : μ | E20: >= | F20: =$D$26 -> 16 | G20: oz.
A21: 16.58 | D21: Ha : μ | E21: < | F21: 16 | G21: oz.
A22: 15.78
A23: 15.83 | C23: Step 2: Select Alpha | D23: Alpha = | E23: 0.05 | F23: Alpha = a = Risk of rejecting H0 when it is actually true = Type 1 Error
A24: 16.56
A25: 15.24 | C25: Step 3: Draw Picture, Collect Data, Calculate Sample Statistics, Calculate Test Statistic
A26: 15.44 | C26: Hypothesized Mean = μ0 = | D26: 16
A27: 16.24 | C27: Sigma = s = | D27: 0.5
A28: 15.7 | C28: Sample SD = s | D28: NA
A29: 16.11 | C29: Test Statistic To Use: | D29: z | F29: =IF(D29="","",IF(D29="z","Because Sigma Known",IF(D29="t","Because Sigma NOT Known","Please Enter a z or t"))) -> Because Sigma Known
A30: 15.77 | C30: sample size = n | D30: =COUNT($A$21:$A$120) -> 100
A31: 16.4 | C31: Sample Mean = Xbar | D31: =ROUND(AVERAGE($A$21:$A$120),2) -> 15.96 | F31: =AVERAGE(values)
A32: 15.7 | C32: Alpha = a = | D32: =E23 -> 0.05
A33: 16.24 | C33: Type of Test | D33: One Tail To Left
A34: 16.27 | C34: SE | D34: =D27/SQRT(D30) -> 0.05 | F34: =IF(D29="","",IF(D29="z"," =Sigma/SQRT(n)",IF(D29="t"," =s/SQRT(n)",IF(OR(D29<>"z",D29<>"t"),".")))) -> =Sigma/SQRT(n) | H34: Standard Error = Standard Deviation for the Sampling distribution of Xbar = SE
A35: 16.08 | C35: ="Test Statistic = "&IF(D29="z","z",IF(D29="t","t",""))&" =" -> Test Statistic = z = | D35: =(D31-D26)/D34 -> -0.8 | F35: =(Xbar - μ0)/SE | H35: Sample Error in numerator, Standard Deviations in Denominator = "How Many SD above or below Hypothesized Pop Mean
A36: 16.19
A37: 15.86 | C37: Step 4: Create p-value Rejection Rule and calculate p-value
A38: 15.53 | C38: Rejection Rule: | D38: p-value <= alpha, Reject H0 and accept Ha , otherwise Fail to Reject H0
A39: 15.01 | C39: p-value One Tail To Left | D39: =_xlfn.NORM.S.DIST(D35,1) -> 0.2118553986 | F39: =NORM.S.DIST(z,1) | I39: Probability of getting Test Statistic or lower
A40: 15.39
A41: 15.53 | C41: Step 4: Calculate Critical Value and Critical Value Rejection Rule
A42: 15.3 | C42: Rejection Rule: | D42: Test Statistic <= Critical Value, Reject H0 and accept Ha , otherwise Fail to Reject H0
A43: 16.23 | C43: Critical Value One Tail To Left | D43: =_xlfn.NORM.S.INV(D32) -> -1.644853627 | F43: =NORM.S.INV(alpha) | I43: This is the hurdle Point
A44: 16.14
A45: 16.75
A46: 15.77 | C46: Step 5: Write Conclusion
A47: 15.43 | B47: . | C47: Because our p-value of .21 is bigger than our alpha of .05, we Fail To Reject H0.
A48: 17.05 | B48: . | C48: Because our tests statistic of -0.8 is bigger than our critical value of -1.645, we Fail To Reject H0.
A49: 15.31 | B49: . | C49: The sample evidence suggests that the mean amount of catsup in the "Yummy Red Catsup"
A50: 16.89 | B50: =IF(B49="","",".") -> . | C50: bottles is not less than 16 oz.
A51: 15.95 | B51: . | C51: At an alpha of 0.05 the sample mean of 15.96 oz. does not provide statistically significant
A52: 16.56 | B52: =IF(B51="","",".") -> . | C52: evidence to suggest that the bottles are being underfilled in the Green Valley area.
A53: 15.83 | B53: . | C53: We do run the Beta Risk (Type 2 Error) of Failing to accept the Alternative (underfilling),
A54: 16.28 | B54: =IF(B53="","",".") -> . | C54: when the H0 was false. Not accept Ha, when it is true. | J54: False Negative: Not selecting Ha, when it is true.
A55: 16.21
A56: 15.98
A57: 15.13
A58: 16.1
A59: 15.43
A60: 16.69
A61: 15.99
A62: 16.06
A63: 16.01
A64: 15.34
A65: 16.25
A66: 16.05
A67: 16.13
A68: 15.72
A69: 15.63
A70: 16.19
A71: 15.63
A72: 15.87
A73: 16.31
A74: 16.27
A75: 15.78
A76: 15.72
A77: 16.31
A78: 16.73
A79: 16.46
A80: 16.18
A81: 15.17
A82: 16.2
A83: 16.97
A84: 15.62
A85: 15.27
A86: 15.49
A87: 16.63
A88: 15.33
A89: 15.42
A90: 15.83
A91: 15.28
A92: 16.32
A93: 17.12
A94: 15.66
A95: 15.07
A96: 16.03
A97: 16.04
A98: 16.44
A99: 16.41
A100: 15.55
A101: 15.87
A102: 15.23
A103: 15.59
A104: 15.14
A105: 16.26
A106: 16.11
A107: 16.86
A108: 15.92
A109: 15.53
A110: 16.18
A111: 15.85
A112: 16.29
A113: 15.7
A114: 16.25
A115: 15.1
A116: 15.89
A117: 15.77
A118: 15.87
A119: 16.13
A120: 17.08

Sheet HT-z-Two-Tail
C1: Mew = population mean = μ | P1: One Tail To Left
C2: Sigma = population standard deviation = s | P2: One Tail To Right
C3: Standard Error = Standard Deviation for the Sampling distribution of Xbar = SE | P3: Two Tail
C4: Hypothesized Value of Population Mean = μ0 = Assumed Value of Population Mean used for testing procedure
C5: sample size = n
C6: Sample Mean = Xbar
C7: Sample Standard Deviation (for when sigma not known) = s
C8: Alpha = a = Risk of rejecting (Original Statement) H0 when it is actually true = Type 1 Error
C9: Test Statistic = Used to determine whether to reject H0 and accept Ha = Number of SE above or below hypothesized mean
C10: Use z test statistic if Sigma known or can be estimated, or you are significance Testing a Proportion and all 4 binomial tests have been met
C11: Use t test statistic if Sigma NOT known or can be estimated
C13: A bottle of "Yummy Red Catsup" is labeled as having 16 oz. of catsup. The bottle filling factory wants to make sure the filling machine is filling accurately. They do not want to fill too little and make customers unhappy, and they do not want to fill too much and thus decrease profits. At the alpha level of 0.05 is the process out of control? (From the companies data they estimate the population standard deviation to be 0.5 oz.)
C15: Hypothesis Test (Significance Test)
C16: Point of view: | D16: Manufacturer wants to make sure that machine is filling accurately, not too much, not too little.
C17: Considering: | D17: Population of all possible bottles that could come off filling line.
C18: Goal: | D18: Run Hypothesis test to provide statistical evidence to show whether the machine is filling
D19: accurately, yes, or no. | G19: Two Tail
A20: oz. per Bottle | C20: Step 1: List H0 and Ha | D20: H0 : μ
A21: 15.25 | D21: Ha : μ
A22: 15.03
A23: 16.07 | C23: Step 2: Select Alpha | D23: Alpha = | F23: Alpha = a = Risk of rejecting H0 when it is actually true = Type 1 Error
A24: 16.26
A25: 16.22 | C25: Step 3: Draw Picture, Collect Data, Calculate Sample Statistics, Calculate Test Statistic
A26: 15.49 | C26: Hypothesized Mean = μ0 =
A27: 15.41 | C27: Sigma = s =
A28: 17.52222767 | C28: Sample SD = s
A29: 15.5 | C29: Test Statistic To Use: | F29: =IF(D29="","",IF(D29="z","Because Sigma Known",IF(D29="t","Because Sigma NOT Known","Please Enter a z or t"))) -> 
A30: 16 | C30: sample size = n
A31: 16 | C31: Sample Mean = Xbar | F31: =AVERAGE(values)
A32: 16.66 | C32: Alpha = a =
A33: 15.74 | C33: Type of Test
A34: 14.97 | C34: SE | F34: =IF(D29="","",IF(D29="z"," =Sigma/SQRT(n)",IF(D29="t"," =s/SQRT(n)",IF(OR(D29<>"z",D29<>"t"),".")))) ->  | H34: Standard Error = Standard Deviation for the Sampling distribution of Xbar = SE
A35: 15.6 | C35: ="Test Statistic = "&IF(D29="z","z",IF(D29="t","t",""))&" =" -> Test Statistic = = | F35: =(Xbar - μ0)/SE | H35: Sample Error in numerator, Standard Deviations in Denominator = "How Many SD above or below Hypothesized Pop Mean
A36: 16.13
A37: 15.96 | C37: Step 4: Create p-value Rejection Rule and calculate p-value
A38: 17.21 | C38: Rejection Rule: | D38: p-value <= alpha, Reject H0 and accept Ha , otherwise Fail to Reject H0
A39: 16.64 | C39: p-value Two Tail | F39: =NORM.S.DIST(lower z,1)*2 | I39: Probability of getting less than - Test Statistic or greatern than + Test Statistic
A40: 15.65 | F40: =(1-NORM.S.DIST(upper z,1))*2
A41: 16.07 | C41: Step 4: Calculate Critical Value and Critical Value Rejection Rule
A42: 16.62 | C42: Rejection Rule: | D42: =-Critical Value < Test Statistic < +Critical Value, Fail to Reject H0 , otherwsie Reject H0 and accept Ha
A43: 16.59 | C43: Lower Critial Value | F43: =NORM.S.INV(alpha/2) | I43: This is the hurdle Point
A44: 15.7 | C44: Upper Critial Value | F44: =-NORM.S.INV(alpha/2)
A45: 16.2
A46: 16.9 | C46: Step 5: Write Conclusion
A47: 16.55 | C47: Because the p-value of 0.15 > alpha of 0.05, we Fail To Reject H0
A48: 16.25 | C48: Because the test statistic of 1.44 is between -1.96 and 1.96, we Fail To Reject H0
A49: 15.99 | C49: The sample evidence suggests that the machine is filling properly.
A50: 16.35
A51: 16.08 | C51: At an alpha of 0.05 the sample mean of 16.12 oz. does not provide statistically significant
A52: 16.06 | C52: evidence to suggest that the process is out of control.
A53: 16.36 | C53: We do run a 5% risk of a Type 2 Error: We might say the machine is filling accurately, when it is not.
A54: 16.08
A55: 16.72
A56: 16.64

Sheet HT-z-Two-Tail (an)
C1: Mew = population mean = μ | P1: One Tail To Left
C2: Sigma = population standard deviation = s | P2: One Tail To Right
C3: Standard Error = Standard Deviation for the Sampling distribution of Xbar = SE | P3: Two Tail
C4: Hypothesized Value of Population Mean = μ0 = Assumed Value of Population Mean used for testing procedure
C5: sample size = n
C6: Sample Mean = Xbar
C7: Sample Standard Deviation (for when sigma not known) = s
C8: Alpha = a = Risk of rejecting (Original Statement) H0 when it is actually true = Type 1 Error
C9: Test Statistic = Used to determine whether to reject H0 and accept Ha = Number of SE above or below hypothesized mean
C10: Use z test statistic if Sigma known or can be estimated, or you are significance Testing a Proportion and all 4 binomial tests have been met
C11: Use t test statistic if Sigma NOT known or can be estimated
C13: A bottle of "Yummy Red Catsup" is labeled as having 16 oz. of catsup. The bottle filling factory wants to make sure the filling machine is filling accurately. They do not want to fill too little and make customers unhappy, and they do not want to fill too much and thus decrease profits. At the alpha level of 0.05 is the process out of control? (From the companies data they estimate the population standard deviation to be 0.5 oz.)
C15: Hypothesis Test (Significance Test)
B16: . | C16: Point of view: | D16: Manufacturer wants to make sure that machine is filling accurately, not too much, not too little.
B17: . | C17: Considering: | D17: Population of all possible bottles that could come off filling line.
B18: . | C18: Goal: | D18: Run Hypothesis test to provide statistical evidence to show whether the machine is filling
B19: =IF(B18="","",".") -> . | D19: accurately, yes, or no. | G19: Two Tail
A20: oz. per Bottle | C20: Step 1: List H0 and Ha | D20: H0 : μ | E20: = | F20: =D26 -> 16
A21: 15.25 | D21: Ha : μ | E21: <> | F21: =D26 -> 16
A22: 15.03
A23: 16.07 | C23: Step 2: Select Alpha | D23: Alpha = | E23: 0.05 | F23: Alpha = a = Risk of rejecting H0 when it is actually true = Type 1 Error
A24: 16.26
A25: 16.22 | C25: Step 3: Draw Picture, Collect Data, Calculate Sample Statistics, Calculate Test Statistic
A26: 15.49 | C26: Hypothesized Mean = μ0 = | D26: 16
A27: 15.41 | C27: Sigma = s = | D27: 0.5
A28: 17.52222767 | C28: Sample SD = s | D28: NA
A29: 15.5 | C29: Test Statistic To Use: | D29: z | F29: =IF(D29="","",IF(D29="z","Because Sigma Known",IF(D29="t","Because Sigma NOT Known","Please Enter a z or t"))) -> Because Sigma Known
A30: 16 | C30: sample size = n | D30: =COUNT(A21:A56) -> 36
A31: 16 | C31: Sample Mean = Xbar | D31: =ROUND(AVERAGE(A21:A56),2) -> 16.12 | F31: =AVERAGE(values)
A32: 16.66 | C32: Alpha = a = | D32: =E23 -> 0.05
A33: 15.74 | C33: Type of Test | D33: Two Tail
A34: 14.97 | C34: SE | D34: =D27/SQRT(D30) -> 0.08333333333 | F34: =IF(D29="","",IF(D29="z"," =Sigma/SQRT(n)",IF(D29="t"," =s/SQRT(n)",IF(OR(D29<>"z",D29<>"t"),".")))) -> =Sigma/SQRT(n) | H34: Standard Error = Standard Deviation for the Sampling distribution of Xbar = SE
A35: 15.6 | C35: ="Test Statistic = "&IF(D29="z","z",IF(D29="t","t",""))&" =" -> Test Statistic = z = | D35: =(D31-D26)/D34 -> 1.44 | F35: =(Xbar - μ0)/SE | H35: Sample Error in numerator, Standard Deviations in Denominator = "How Many SD above or below Hypothesized Pop Mean
A36: 16.13
A37: 15.96 | C37: Step 4: Create p-value Rejection Rule and calculate p-value
A38: 17.21 | C38: Rejection Rule: | D38: p-value <= alpha, Reject H0 and accept Ha , otherwise Fail to Reject H0
A39: 16.64 | C39: p-value Two Tail | D39: =_xlfn.NORM.S.DIST(-D35,1)*2 -> 0.1498673991 | F39: =NORM.S.DIST(lower z,1)*2 | I39: Probability of getting less than - Test Statistic or greatern than + Test Statistic
A40: 15.65 | D40: =(1-_xlfn.NORM.S.DIST(D35,1))*2 -> 0.1498673991 | F40: =(1-NORM.S.DIST(upper z,1))*2
A41: 16.07 | C41: Step 4: Calculate Critical Value and Critical Value Rejection Rule
A42: 16.62 | C42: Rejection Rule: | D42: =-Critical Value < Test Statistic < +Critical Value, Fail to Reject H0 , otherwsie Reject H0 and accept Ha
A43: 16.59 | C43: Lower Critial Value | D43: =_xlfn.NORM.S.INV(D32/2) -> -1.959963985 | F43: =NORM.S.INV(alpha/2) | I43: This is the hurdle Point
A44: 15.7 | C44: Upper Critial Value | D44: =-D43 -> 1.959963985 | F44: =-NORM.S.INV(alpha/2)
A45: 16.2
A46: 16.9 | C46: Step 5: Write Conclusion
A47: 16.55 | B47: . | C47: Because the p-value of 0.15 > alpha of 0.05, we Fail To Reject H0
A48: 16.25 | B48: =IF($B$47="","",".") -> . | C48: Because the test statistic of 1.44 is between -1.96 and 1.96, we Fail To Reject H0
A49: 15.99 | B49: . | C49: The sample evidence suggests that the machine is filling properly.
A50: 16.35 | B50: .
A51: 16.08 | B51: . | C51: At an alpha of 0.05 the sample mean of 16.12 oz. does not provide statistically significant
A52: 16.06 | B52: . | C52: evidence to suggest that the process is out of control.
A53: 16.36 | B53: . | C53: We do run a 5% risk of a Type 2 Error: We might say the machine is filling accurately, when it is not.
A54: 16.08 | B54: .
A55: 16.72
A56: 16.64

Sheet SummaryNORMFunctions
A1: 1-Tail To Right - Upper
A2: Hypothesized Mean = μ0 = | B2: 85000
A3: Sigma = s = | B3: 12549
A4: sample size = n | B4: 36
A5: Sample Mean = Xbar | B5: 88595
A6: Alpha = a = | B6: 0.05
A7: SE | C7: =Sigma/SQRT(n) | D7: Standard Error = Standard Deviation for the Sampling distribution of Xbar = SE
A8: Test Statistic = z = | C8: =(Xbar - μ0)/SE | D8: Sample Error in numerator, Standard Deviations in Denominator = "How Many SD above or below Hypothesized Pop Mean
A9: Rejection Rule: p-value <= alpha, Reject H0 and accept Ha , otherwise Fail to Reject H0
A10: p-value One Tail To Right | C10: =1-NORM.S.DIST(z,1) | D10: Probability of getting Test Statistic or higher
A11: Rejection Rule: Test Statistic >= Critical Value, Reject H0 and accept Ha , otherwise Fail to Reject H0
A12: Critical Value One Tail To Right | C12: =NORM.S.INV(1-alpha) | D12: This is the hurdle Point
A23: 1-Tail To Left - Lower
A24: Hypothesized Mean = μ0 = | B24: 16 | C24: oz.
A25: Sigma = s = | B25: 0.5 | C25: oz.
A26: sample size = n | B26: 100
A27: Sample Mean = Xbar | B27: 15.96
A28: Alpha = a = | B28: 0.05
A29: SE | C29: =Sigma/SQRT(n) | D29: Standard Error = Standard Deviation for the Sampling distribution of Xbar = SE
A30: Test Statistic = = | C30: =(Xbar - μ0)/SE | D30: Sample Error in numerator, Standard Deviations in Denominator = "How Many SD above or below Hypothesized Pop Mean
A31: Rejection Rule: p-value <= alpha, Reject H0 and accept Ha , otherwise Fail to Reject H0
A32: p-value One Tail To Left | C32: =NORM.S.DIST(z,1) | D32: Probability of getting Test Statistic or higher
A33: Rejection Rule: Test Statistic <= Critical Value, Reject H0 and accept Ha , otherwise Fail to Reject H0
A34: Critical Value One Tail To Left | C34: =NORM.S.INV(alpha) | D34: This is the hurdle Point
B43: p-value Two Tail
A46: Two Tail
A47: Hypothesized Mean = μ0 = | B47: 16
A48: Sigma = s = | B48: 0.5
A49: sample size = n | B49: 36
A50: Sample Mean = Xbar | B50: 16.12
A51: Alpha = a = | B51: 0.05
A52: SE | C52: =Sigma/SQRT(n) | E52: Standard Error = Standard Deviation for the Sampling distribution of Xbar = SE
A53: Test Statistic = z = | C53: =(Xbar - μ0)/SE | E53: Sample Error in numerator, Standard Deviations in Denominator = "How Many SD above or below Hypothesized Pop Mean
A54: Rejection Rule: p-value <= alpha, Reject H0 and accept Ha , otherwise Fail to Reject H0
A55: p-value Two Tail | C55: =NORM.S.DIST(lower z,1)*2 | F55: Probability of getting less than - Test Statistic or greatern than + Test Statistic
A56: Rejection Rule: =-Critical Value < Test Statistic < +Critical Value, Fail to Reject H0 , otherwsie Reject H0 and accept Ha
A57: Lower Critial Value | C57: =NORM.S.INV(alpha/2) | F57: This is the hurdle Point
A58: Upper Critial Value | C58: =-NORM.S.INV(alpha/2)

Sheet SummaryNORMFunctions (an)
A1: 1-Tail To Right - Upper
A2: Hypothesized Mean = μ0 = | B2: 85000
A3: Sigma = s = | B3: 12549
A4: sample size = n | B4: 36
A5: Sample Mean = Xbar | B5: 88595
A6: Alpha = a = | B6: 0.05
A7: SE | B7: =B3/SQRT(B4) -> 2091.5 | C7: =Sigma/SQRT(n) | D7: Standard Error = Standard Deviation for the Sampling distribution of Xbar = SE
A8: Test Statistic = z = | B8: =(B5-B2)/B7 -> 1.718862061 | C8: =(Xbar - μ0)/SE | D8: Sample Error in numerator, Standard Deviations in Denominator = "How Many SD above or below Hypothesized Pop Mean
A9: Rejection Rule: p-value <= alpha, Reject H0 and accept Ha , otherwise Fail to Reject H0
A10: p-value One Tail To Right | B10: =1-_xlfn.NORM.S.DIST(B8,1) -> 0.04281974591 | C10: =1-NORM.S.DIST(z,1) | D10: Probability of getting Test Statistic or higher
A11: Rejection Rule: Test Statistic >= Critical Value, Reject H0 and accept Ha , otherwise Fail to Reject H0
A12: Critical Value One Tail To Right | B12: =_xlfn.NORM.S.INV(1-B6) -> 1.644853627 | C12: =NORM.S.INV(1-alpha) | D12: This is the hurdle Point
A23: 1-Tail To Left - Lower
A24: Hypothesized Mean = μ0 = | B24: 16 | C24: oz.
A25: Sigma = s = | B25: 0.5 | C25: oz.
A26: sample size = n | B26: 100
A27: Sample Mean = Xbar | B27: 15.96
A28: Alpha = a = | B28: 0.05
A29: SE | B29: =B25/SQRT(B26) -> 0.05 | C29: =Sigma/SQRT(n) | D29: Standard Error = Standard Deviation for the Sampling distribution of Xbar = SE
A30: Test Statistic = = | B30: =(B27-B24)/B29 -> -0.8 | C30: =(Xbar - μ0)/SE | D30: Sample Error in numerator, Standard Deviations in Denominator = "How Many SD above or below Hypothesized Pop Mean
A31: Rejection Rule: p-value <= alpha, Reject H0 and accept Ha , otherwise Fail to Reject H0
A32: p-value One Tail To Left | B32: =_xlfn.NORM.S.DIST(B30,1) -> 0.2118553986 | C32: =NORM.S.DIST(z,1) | D32: Probability of getting Test Statistic or higher
A33: Rejection Rule: Test Statistic <= Critical Value, Reject H0 and accept Ha , otherwise Fail to Reject H0
A34: Critical Value One Tail To Left | B34: =_xlfn.NORM.S.INV(B28) -> -1.644853627 | C34: =NORM.S.INV(alpha) | D34: This is the hurdle Point
B43: p-value Two Tail | C43: =_xlfn.NORM.S.DIST(-B53,1)*2 -> 0.1498673991
A46: Two Tail
A47: Hypothesized Mean = μ0 = | B47: 16
A48: Sigma = s = | B48: 0.5
A49: sample size = n | B49: 36
A50: Sample Mean = Xbar | B50: 16.12
A51: Alpha = a = | B51: 0.05
A52: SE | B52: =B48/SQRT(B49) -> 0.08333333333 | C52: =Sigma/SQRT(n) | E52: Standard Error = Standard Deviation for the Sampling distribution of Xbar = SE
A53: Test Statistic = z = | B53: =(B50-B47)/B52 -> 1.44 | C53: =(Xbar - μ0)/SE | E53: Sample Error in numerator, Standard Deviations in Denominator = "How Many SD above or below Hypothesized Pop Mean
A54: Rejection Rule: p-value <= alpha, Reject H0 and accept Ha , otherwise Fail to Reject H0
A55: p-value Two Tail | B55: =(1-_xlfn.NORM.S.DIST(B53,1))*2 -> 0.1498673991 | C55: =NORM.S.DIST(lower z,1)*2 | F55: Probability of getting less than - Test Statistic or greatern than + Test Statistic
A56: Rejection Rule: =-Critical Value < Test Statistic < +Critical Value, Fail to Reject H0 , otherwsie Reject H0 and accept Ha
A57: Lower Critial Value | B57: =_xlfn.NORM.S.INV(B51/2) -> -1.959963985 | C57: =NORM.S.INV(alpha/2) | F57: This is the hurdle Point
A58: Upper Critial Value | B58: =-B57 -> 1.959963985 | C58: =-NORM.S.INV(alpha/2)

Sheet T & Histograms
A1: Q: When are we allowed to use t Distribution?
A2: A: When population distribution in normally distributed or near normal, or n is sufficicently large enough
A3: 1) If pop distribution is normal or near normal, smaller than 30 sample size may be used
A4: 2) If pop distribution is not normal, n >= 30 usually adequate
A5: 3) If pop distribution is highly skewed or has outliers, n >= 50 should be used
A7: Notes:
A8: If the population distribution is not known a histogram based on a sample may give you a clue.
A9: Although histogram is not conclusive, sometimes it may be the best clue that you have.
A10: If the histogram shows non-normal or outliers, increasing the sample size and improve the calculations.
D23: Alpha = a = Risk of rejecting H0 when it is actually true = Type 1 Error
D24: At alpha = 0.05, 5% risk of rejecting H0 even though it was true, if we reject Mew <= $85,000, about 5 out of 100 times we will be incorrect.

Sheet HT-t-upper
C1: Mew = population mean = μ | P1: One Tail To Left
C2: Sigma = population standard deviation = s | P2: One Tail To Right
C3: Standard Error = Standard Deviation for the Sampling distribution of Xbar = SE | P3: Two Tail
C4: Hypothesized Value of Population Mean = μ0 = Assumed Value of Population Mean used for testing procedure
C5: sample size = n
C6: Sample Mean = Xbar
C7: Sample Standard Deviation (for when sigma not known) = s
C8: Alpha = a = Risk of rejecting H0 when it is actually true = Type 1 Error
C9: Test Statistic = Used to determine whether to reject H0 and accept Ha = Number of SE above or below hypothesized mean
C10: Use z test statistic if Sigma known or can be estimated, or you are significance Testing a Proportion and all 4 binomial tests have been met
C11: Use t test statistic if Sigma NOT known or can be estimated
C13: Fuses R Us manufactures fuses. A new machine for manufacturing fuses was installed. The old machine produced 250 fuse per hour. The manufacturer wants to determine if the new machine makes more than 250 fuses per hour. Over the last month a random sample of number of fuses made per hour was taken. At the 0.01 level of significance, can we conclude that the new machine produces more than 250 fuses per hour? Because this is a new machine, there is no data on what the population standard deviation is. The population distributions for manufacturing situations like this tends to be normally distributed (t-distribution requires that pop distribution is normal or near normal or n is large).
C15: Hypothesis Test (Significance Test)
C16: Point of view: | D16: Manufacturer wants to see if new machines more productive
C17: Considering: | D17: Population of number of fuses made per hour from this machine
C18: Goal: | D18: Run Hypothesis test to provide statistical evidence to determine whether new
D19: machine makes more than 250 fuse per hour. | H19: >
C20: Step 1: List H0 and Ha | D20: H0 : μ | G20: # fuses per hour
A21: # fuses made | D21: Ha : μ | G21: # fuses per hour
A22: 255
A23: 254 | C23: Step 2: Select Alpha | D23: Alpha = | F23: Alpha = a = Risk of rejecting H0 when it is actually true = Type 1 Error
A24: 251
A25: 260 | C25: Step 3: Draw Picture, Collect Data, Calculate Sample Statistics, Calculate Test Statistic
A26: 255 | C26: Hypothesized Mean = μ0 =
A27: 263 | C27: Sigma = s =
A28: 258 | C28: Sample SD = s
A29: 250 | C29: Test Statistic To Use: | F29: =IF(D29="","",IF(D29="z","Because Sigma Known",IF(D29="t","Because Sigma NOT Known","Please Enter a z or t"))) -> 
A30: 260 | C30: sample size = n | E30: df
A31: 261 | C31: Sample Mean = Xbar
A32: 255 | C32: Alpha = a =
A33: 250 | C33: Type of Test
A34: 249 | C34: SE | F34: =IF(D29="","",IF(D29="z"," =Sigma/SQRT(n)",IF(D29="t"," =s/SQRT(n)",IF(OR(D29<>"z",D29<>"t"),".")))) ->  | H34: Standard Error = Standard Deviation for the Sampling distribution of Xbar = SE
A35: 261 | C35: ="Test Statistic = "&IF(D29="z","z",IF(D29="t","t",""))&" =" -> Test Statistic = = | F35: =(Xbar - μ0)/SE | H35: Sample Error in numerator, Standard Deviations in Denominator = "How Many SD above or below Hypothesized Pop Mean
A36: 246
C37: Step 4: Create p-value Rejection Rule and calculate p-value
C38: Rejection Rule: | D38: p-value <= alpha, Reject H0 and accept Ha , otherwise Fail to Reject H0
C39: p-value One Tail To Right | F39: =1-T.DIST(t,df,1) | I39: Probability of getting Test Statistic or higher
C41: Step 4: Calculate Critical Value and Critical Value Rejection Rule
C42: Rejection Rule: | D42: Test Statistic >= Critical Value, Reject H0 and accept Ha , otherwise Fail to Reject H0
C43: Critical Value One Tail To Right | F43: =T.INV(1-alpha,df) | I43: This is the hurdle Point
C46: Step 5: Write Conclusion
C47: Because the p-value of 0.001 <= alpha of 0.01, we reject H0 and accept Ha. This is very strong evidence.
C48: Because the test statistic of 3.87 >= critical value of 2.62, we reject H0 and accept Ha.
C49: The statistical evidence very strongly suggests that the new machine is more productive than the old machine.
C51: At an alpha of 0.01, our sample mean of 255 fuses made per hour provides statistically significant evidence
C52: that the number of fuses made per hour is more than 250.
C53: We do run a 1% risk of a Type 1 Error that we might say that the mean number of fuses is more than 250,
C54: when in fact it does not, however, the p-value provides very strong evidence that the machine is more
C55: productive.
A60: Min | B60: =MIN(A22:A36) -> 246
A61: Max | B61: =MAX(A22:A36) -> 263
A63: Category | B63: Frequency
A64: 246 | B64: =COUNTIF($A$22:$A$36,A64) -> 1
A65: 247 | B65: =COUNTIF($A$22:$A$36,A65) -> 0
A66: 248 | B66: 0
A67: 249 | B67: 1
A68: 250 | B68: 2
A69: 251 | B69: 1
A70: 252 | B70: 0
A71: 253 | B71: 0
A72: 254 | B72: 1
A73: 255 | B73: 3
A74: 256 | B74: 0
A75: 257 | B75: 0
A76: 258 | B76: 1
A77: 259 | B77: 0
A78: 260 | B78: 2
A79: 261 | B79: 2
A80: 262 | B80: 0
A81: 263 | B81: 1

Sheet HT-t-upper (an)
C1: Mew = population mean = μ | P1: One Tail To Left
C2: Sigma = population standard deviation = s | P2: One Tail To Right
C3: Standard Error = Standard Deviation for the Sampling distribution of Xbar = SE | P3: Two Tail
C4: Hypothesized Value of Population Mean = μ0 = Assumed Value of Population Mean used for testing procedure
C5: sample size = n
C6: Sample Mean = Xbar
C7: Sample Standard Deviation (for when sigma not known) = s
C8: Alpha = a = Risk of rejecting H0 when it is actually true = Type 1 Error
C9: Test Statistic = Used to determine whether to reject H0 and accept Ha = Number of SE above or below hypothesized mean
C10: Use z test statistic if Sigma known or can be estimated, or you are significance Testing a Proportion and all 4 binomial tests have been met
C11: Use t test statistic if Sigma NOT known or can be estimated
C13: Fuses R Us manufactures fuses. A new machine for manufacturing fuses was installed. The old machine produced 250 fuse per hour. The manufacturer wants to determine if the new machine makes more than 250 fuses per hour. Over the last month a random sample of number of fuses made per hour was taken. At the 0.01 level of significance, can we conclude that the new machine produces more than 250 fuses per hour? Because this is a new machine, there is no data on what the population standard deviation is. The population distributions for manufacturing situations like this tends to be normally distributed (t-distribution requires that pop distribution is normal or near normal or n is large).
C15: Hypothesis Test (Significance Test)
B16: . | C16: Point of view: | D16: Manufacturer wants to see if new machines more productive
B17: . | C17: Considering: | D17: Population of number of fuses made per hour from this machine
B18: . | C18: Goal: | D18: Run Hypothesis test to provide statistical evidence to determine whether new
B19: =IF(B18=".",B18,"") -> . | D19: machine makes more than 250 fuse per hour. | H19: >
C20: Step 1: List H0 and Ha | D20: H0 : μ | E20: <= | F20: =D26 -> 250 | G20: # fuses per hour
A21: # fuses made | D21: Ha : μ | E21: > | F21: =D26 -> 250 | G21: # fuses per hour
A22: 255
A23: 254 | C23: Step 2: Select Alpha | D23: Alpha = | E23: 0.01 | F23: Alpha = a = Risk of rejecting H0 when it is actually true = Type 1 Error
A24: 251
A25: 260 | C25: Step 3: Draw Picture, Collect Data, Calculate Sample Statistics, Calculate Test Statistic
A26: 255 | C26: Hypothesized Mean = μ0 = | D26: 250
A27: 263 | C27: Sigma = s = | D27: NA
A28: 258 | C28: Sample SD = s | D28: =_xlfn.STDEV.S(A22:A36) -> 5.198900983
A29: 250 | C29: Test Statistic To Use: | D29: t | F29: =IF(D29="","",IF(D29="z","Because Sigma Known",IF(D29="t","Because Sigma NOT Known","Please Enter a z or t"))) -> Because Sigma NOT Known
A30: 260 | C30: sample size = n | D30: =COUNT(A22:A36) -> 15 | E30: df | F30: =D30-1 -> 14
A31: 261 | C31: Sample Mean = Xbar | D31: =AVERAGE(A22:A36) -> 255.2
A32: 255 | C32: Alpha = a = | D32: =E23 -> 0.01
A33: 250 | C33: Type of Test | D33: One Tail To Right
A34: 249 | C34: SE | D34: =D28/SQRT(D30) -> 1.342350462 | F34: =IF(D29="","",IF(D29="z"," =Sigma/SQRT(n)",IF(D29="t"," =s/SQRT(n)",IF(OR(D29<>"z",D29<>"t"),".")))) -> =s/SQRT(n) | H34: Standard Error = Standard Deviation for the Sampling distribution of Xbar = SE
A35: 261 | C35: ="Test Statistic = "&IF(D29="z","z",IF(D29="t","t",""))&" =" -> Test Statistic = t = | D35: =(D31-D26)/D34 -> 3.873802072 | F35: =(Xbar - μ0)/SE | H35: Sample Error in numerator, Standard Deviations in Denominator = "How Many SD above or below Hypothesized Pop Mean
A36: 246
C37: Step 4: Create p-value Rejection Rule and calculate p-value
C38: Rejection Rule: | D38: p-value <= alpha, Reject H0 and accept Ha , otherwise Fail to Reject H0
C39: p-value One Tail To Right | D39: =1-_xlfn.T.DIST(D35,F30,1) -> 0.0008432753129 | F39: =1-T.DIST(t,df,1) | I39: Probability of getting Test Statistic or higher
C41: Step 4: Calculate Critical Value and Critical Value Rejection Rule
C42: Rejection Rule: | D42: Test Statistic >= Critical Value, Reject H0 and accept Ha , otherwise Fail to Reject H0
C43: Critical Value One Tail To Right | D43: =_xlfn.T.INV(1-D32,F30) -> 2.624494068 | F43: =T.INV(1-alpha,df) | I43: This is the hurdle Point
C46: Step 5: Write Conclusion
B47: . | C47: Because the p-value of 0.001 <= alpha of 0.01, we reject H0 and accept Ha. This is very strong evidence.
B48: . | C48: Because the test statistic of 3.87 >= critical value of 2.62, we reject H0 and accept Ha.
B49: . | C49: The statistical evidence very strongly suggests that the new machine is more productive than the old machine.
B50: =IF(B49=".",B49,"") -> .
B51: . | C51: At an alpha of 0.01, our sample mean of 255 fuses made per hour provides statistically significant evidence
B52: =IF(B51=".",B51,"") -> . | C52: that the number of fuses made per hour is more than 250.
B53: . | C53: We do run a 1% risk of a Type 1 Error that we might say that the mean number of fuses is more than 250,
B54: =IF(B53=".",B53,"") -> . | C54: when in fact it does not, however, the p-value provides very strong evidence that the machine is more
B55: . | C55: productive.
A60: Min | B60: =MIN(A22:A36) -> 246
A61: Max | B61: =MAX(A22:A36) -> 263
A63: Category | B63: Frequency
A64: 246 | B64: =COUNTIF($A$22:$A$36,A64) -> 1
A65: 247 | B65: =COUNTIF($A$22:$A$36,A65) -> 0
A66: 248 | B66: 0
A67: 249 | B67: 1
A68: 250 | B68: 2
A69: 251 | B69: 1
A70: 252 | B70: 0
A71: 253 | B71: 0
A72: 254 | B72: 1
A73: 255 | B73: 3
A74: 256 | B74: 0
A75: 257 | B75: 0
A76: 258 | B76: 1
A77: 259 | B77: 0
A78: 260 | B78: 2
A79: 261 | B79: 2
A80: 262 | B80: 0
A81: 263 | B81: 1

Sheet HT-t-lower
C1: Mew = population mean = μ | P1: One Tail To Left
C2: Sigma = population standard deviation = s | P2: One Tail To Right
C3: Standard Error = Standard Deviation for the Sampling distribution of Xbar = SE | P3: Two Tail
C4: Hypothesized Value of Population Mean = μ0 = Assumed Value of Population Mean used for testing procedure
C5: sample size = n
C6: Sample Mean = Xbar
C7: Sample Standard Deviation (for when sigma not known) = s
C8: Alpha = a = Risk of rejecting H0 when it is actually true = Type 1 Error
C9: Test Statistic = Used to determine whether to reject H0 and accept Ha = Number of SE above or below hypothesized mean
C10: Use z test statistic if Sigma known or can be estimated, or you are significance Testing a Proportion and all 4 binomial tests have been met
C11: Use t test statistic if Sigma NOT known or can be estimated
C13: Solid Construction is a company that builds decks for homes. The company recently employed a new building technique that is supposed to save time over the old method which had a mean of 15.5 hours. Solid Construction wants to determine if the new method actually saves time. A random sample was taken of number of hours to build a deck. At the .05 significance level, can Solid Construction conclude that the new method is faster?
C15: Hypothesis Test (Significance Test)
C16: Point of view: | D16: Solid Construction wants to see if the new method is faster
C17: Considering: | D17: Population of times for building a deck
C18: Goal: | D18: Run Hypothesis test to provide statistical evidence to determine whether new
D19: method is faster than 15.5 hours | H19: <
C20: Step 1: List H0 and Ha | D20: H0 : μ
A21: hours to build deck | D21: Ha : μ
A22: 19.7
A23: 10.2 | C23: Step 2: Select Alpha | D23: Alpha = | F23: Alpha = a = Risk of rejecting H0 when it is actually true = Type 1 Error
A24: 15.7
A25: 20 | C25: Step 3: Draw Picture, Collect Data, Calculate Sample Statistics, Calculate Test Statistic
A26: 21.7 | C26: Hypothesized Mean = μ0 =
A27: 16 | C27: Sigma = s =
A28: 13.8 | C28: Sample SD = s
A29: 17.1 | C29: Test Statistic To Use: | F29: =IF(D29="","",IF(D29="z","Because Sigma Known",IF(D29="t","Because Sigma NOT Known","Please Enter a z or t"))) -> 
A30: 19.4 | C30: sample size = n | E30: df
A31: 19.5 | C31: Sample Mean = Xbar
A32: 22.4 | C32: Alpha = a =
A33: 8.5 | C33: Type of Test
A34: 17.1 | C34: SE | F34: =IF(D29="","",IF(D29="z"," =Sigma/SQRT(n)",IF(D29="t"," =s/SQRT(n)",IF(OR(D29<>"z",D29<>"t"),".")))) ->  | H34: Standard Error = Standard Deviation for the Sampling distribution of Xbar = SE
A35: 10.9 | C35: ="Test Statistic = "&IF(D29="z","z",IF(D29="t","t",""))&" =" -> Test Statistic = = | F35: =(Xbar - μ0)/SE | H35: Sample Error in numerator, Standard Deviations in Denominator = "How Many SD above or below Hypothesized Pop Mean
A36: 9.8
A37: 12.7 | C37: Step 4: Create p-value Rejection Rule and calculate p-value
A38: 15.5 | C38: Rejection Rule: | D38: p-value <= alpha, Reject H0 and accept Ha , otherwise Fail to Reject H0
A39: 11.8 | C39: p-value One Tail To Left | F39: =T.DIST(t,df,1) | I39: Probability of getting Test Statistic or lower
A40: 9.5
A41: 10.5 | C41: Step 4: Calculate Critical Value and Critical Value Rejection Rule
A42: 18 | C42: Rejection Rule: | D42: Test Statistic <= Critical Value, Reject H0 and accept Ha , otherwise Fail to Reject H0
A43: 14.3 | C43: Critical Value One Tail To Left | F43: =T.INV(alpha,df) | I43: This is the hurdle Point
A44: 16.5
A45: 14.1
A46: 25.6 | C46: Step 5: Write Conclusion
A47: 17.8 | C47: Because our p-value is bigger than out alpha, we Fail to Reject H0.
A48: 12.6 | C48: Because our test statistic is bigger than our critical value, we Fail to Reject H0.
A49: 13.6 | C49: The sample evidence does not suggest that the new method for building decks is faster. Because we did
A50: 17.9 | C50: get a sample mean of 14.9 hours and that is less than our hypothesized mean of 15.5 hours, we may want
A51: 21 | C51: to investigate further. Try a larger sample? Investigate whether or not the techniques of the new method
A52: 19.5 | C52: are being implemented properly?
A53: 6.1 | C53: At a 0.05 significance level, our sample mean of 14.9 hours does not provide statistical evidences to
A54: 17.1 | C54: support the idea that the new method reduces the time to build a new deck.
A55: 12.2 | C55: We do run the risk of a Type 2 Error: Not accepting the alternative hypothesis (method faster), when in fact it was
A56: 7.2
A57: 9.6
A58: 11.9
A59: 9.7
A60: 20.2 | C60: Min | D60: =MIN(A22:A71) -> 6.1
A61: 17.8 | C61: Max | D61: =MAX(A22:A71) -> 25.6
A62: 18.1
A63: 13.4 | C63: Category | D63: Frequency
A64: 21.8 | C64: 6 | D64: =COUNTIFS($A$22:$A$71,">="&C64,$A$22:$A$71,"<"&C64+1) -> 1
A65: 13 | C65: 7 | D65: =COUNTIFS($A$22:$A$71,">="&C65,$A$22:$A$71,"<"&C65+1) -> 2
A66: 7.7 | C66: 8 | D66: 1
A67: 15.8 | C67: 9 | D67: 4
A68: 14.9 | C68: 10 | D68: 4
A69: 13.9 | C69: 11 | D69: 3
A70: 11.7 | C70: 12 | D70: 3
A71: 10.3 | C71: 13 | D71: 5
C72: 14 | D72: 3
C73: 15 | D73: 3
C74: 16 | D74: 2
C75: 17 | D75: 6
C76: 18 | D76: 2
C77: 19 | D77: 4
C78: 20 | D78: 2
C79: 21 | D79: 3
C80: 22 | D80: 1
C81: 23 | D81: 0
C82: 24 | D82: 0
C83: 25 | D83: 1
C84: 26 | D84: 0
C85: Total | D85: =SUM(D64:D84) -> 50

Sheet HT-t-lower (an)
C1: Mew = population mean = μ | P1: One Tail To Left
C2: Sigma = population standard deviation = s | P2: One Tail To Right
C3: Standard Error = Standard Deviation for the Sampling distribution of Xbar = SE | P3: Two Tail
C4: Hypothesized Value of Population Mean = μ0 = Assumed Value of Population Mean used for testing procedure
C5: sample size = n
C6: Sample Mean = Xbar
C7: Sample Standard Deviation (for when sigma not known) = s
C8: Alpha = a = Risk of rejecting H0 when it is actually true = Type 1 Error
C9: Test Statistic = Used to determine whether to reject H0 and accept Ha = Number of SE above or below hypothesized mean
C10: Use z test statistic if Sigma known or can be estimated, or you are significance Testing a Proportion and all 4 binomial tests have been met
C11: Use t test statistic if Sigma NOT known or can be estimated
C13: Solid Construction is a company that builds decks for homes. The company recently employed a new building technique that is supposed to save time over the old method which had a mean of 15.5 hours. Solid Construction wants to determine if the new method actually saves time. A random sample was taken of number of hours to build a deck. At the .05 significance level, can Solid Construction conclude that the new method is faster?
C15: Hypothesis Test (Significance Test)
B16: . | C16: Point of view: | D16: Solid Construction wants to see if the new method is faster
B17: . | C17: Considering: | D17: Population of times for building a deck
B18: . | C18: Goal: | D18: Run Hypothesis test to provide statistical evidence to determine whether new
B19: =IF(B18=".",B18,"") -> . | D19: method is faster than 15.5 hours | H19: <
C20: Step 1: List H0 and Ha | D20: H0 : μ | E20: >= | F20: =$D$26 -> 15.5 | G20: hours to build a deck
A21: hours to build deck | D21: Ha : μ | E21: < | F21: 15.5 | G21: hours to build a deck
A22: 19.7
A23: 10.2 | C23: Step 2: Select Alpha | D23: Alpha = | E23: 0.05 | F23: Alpha = a = Risk of rejecting H0 when it is actually true = Type 1 Error
A24: 15.7
A25: 20 | C25: Step 3: Draw Picture, Collect Data, Calculate Sample Statistics, Calculate Test Statistic
A26: 21.7 | C26: Hypothesized Mean = μ0 = | D26: 15.5
A27: 16 | C27: Sigma = s = | D27: NA
A28: 13.8 | C28: Sample SD = s | D28: =_xlfn.STDEV.S(A22:A71) -> 4.478405784
A29: 17.1 | C29: Test Statistic To Use: | D29: t | F29: =IF(D29="","",IF(D29="z","Because Sigma Known",IF(D29="t","Because Sigma NOT Known","Please Enter a z or t"))) -> Because Sigma NOT Known
A30: 19.4 | C30: sample size = n | D30: =COUNT(A22:A71) -> 50 | E30: df | F30: =D30-1 -> 49
A31: 19.5 | C31: Sample Mean = Xbar | D31: =AVERAGE(A22:A71) -> 14.902
A32: 22.4 | C32: Alpha = a = | D32: =E23 -> 0.05
A33: 8.5 | C33: Type of Test | D33: One Tail To Left
A34: 17.1 | C34: SE | D34: =D28/SQRT(D30) -> 0.6333422198 | F34: =IF(D29="","",IF(D29="z"," =Sigma/SQRT(n)",IF(D29="t"," =s/SQRT(n)",IF(OR(D29<>"z",D29<>"t"),".")))) -> =s/SQRT(n) | H34: Standard Error = Standard Deviation for the Sampling distribution of Xbar = SE
A35: 10.9 | C35: ="Test Statistic = "&IF(D29="z","z",IF(D29="t","t",""))&" =" -> Test Statistic = t = | D35: =(D31-D26)/D34 -> -0.9441972781 | F35: =(Xbar - μ0)/SE | H35: Sample Error in numerator, Standard Deviations in Denominator = "How Many SD above or below Hypothesized Pop Mean
A36: 9.8
A37: 12.7 | C37: Step 4: Create p-value Rejection Rule and calculate p-value
A38: 15.5 | C38: Rejection Rule: | D38: p-value <= alpha, Reject H0 and accept Ha , otherwise Fail to Reject H0
A39: 11.8 | C39: p-value One Tail To Left | D39: =_xlfn.T.DIST(D35,F30,1) -> 0.1748507222 | F39: =T.DIST(t,df,1) | I39: Probability of getting Test Statistic or lower
A40: 9.5
A41: 10.5 | C41: Step 4: Calculate Critical Value and Critical Value Rejection Rule
A42: 18 | C42: Rejection Rule: | D42: Test Statistic <= Critical Value, Reject H0 and accept Ha , otherwise Fail to Reject H0
A43: 14.3 | C43: Critical Value One Tail To Left | D43: =_xlfn.T.INV(D32,F30) -> -1.676550893 | F43: =T.INV(alpha,df) | I43: This is the hurdle Point
A44: 16.5
A45: 14.1
A46: 25.6 | C46: Step 5: Write Conclusion
A47: 17.8 | B47: . | C47: Because our p-value is bigger than out alpha, we Fail to Reject H0.
A48: 12.6 | B48: . | C48: Because our test statistic is bigger than our critical value, we Fail to Reject H0.
A49: 13.6 | B49: . | C49: The sample evidence does not suggest that the new method for building decks is faster. Because we did
A50: 17.9 | B50: =IF(B49=".",B49,"") -> . | C50: get a sample mean of 14.9 hours and that is less than our hypothesized mean of 15.5 hours, we may want
A51: 21 | B51: =IF(B50=".",B50,"") -> . | C51: to investigate further. Try a larger sample? Investigate whether or not the techniques of the new method
A52: 19.5 | B52: =IF(B51=".",B51,"") -> . | C52: are being implemented properly?
A53: 6.1 | B53: . | C53: At a 0.05 significance level, our sample mean of 14.9 hours does not provide statistical evidences to
A54: 17.1 | B54: =IF(B53=".",B53,"") -> . | C54: support the idea that the new method reduces the time to build a new deck.
A55: 12.2 | B55: . | C55: We do run the risk of a Type 2 Error: Not accepting the alternative hypothesis (method faster), when in fact it was
A56: 7.2
A57: 9.6
A58: 11.9
A59: 9.7
A60: 20.2 | C60: Min | D60: =MIN(A22:A71) -> 6.1
A61: 17.8 | C61: Max | D61: =MAX(A22:A71) -> 25.6
A62: 18.1
A63: 13.4 | C63: Category | D63: Frequency
A64: 21.8 | C64: 6 | D64: =COUNTIFS($A$22:$A$71,">="&C64,$A$22:$A$71,"<"&C64+1) -> 1
A65: 13 | C65: 7 | D65: =COUNTIFS($A$22:$A$71,">="&C65,$A$22:$A$71,"<"&C65+1) -> 2
A66: 7.7 | C66: 8 | D66: 1
A67: 15.8 | C67: 9 | D67: 4
A68: 14.9 | C68: 10 | D68: 4
A69: 13.9 | C69: 11 | D69: 3
A70: 11.7 | C70: 12 | D70: 3
A71: 10.3 | C71: 13 | D71: 5
C72: 14 | D72: 3
C73: 15 | D73: 3
C74: 16 | D74: 2
C75: 17 | D75: 6
C76: 18 | D76: 2
C77: 19 | D77: 4
C78: 20 | D78: 2
C79: 21 | D79: 3
C80: 22 | D80: 1
C81: 23 | D81: 0
C82: 24 | D82: 0
C83: 25 | D83: 1
C84: 26 | D84: 0
C85: Total | D85: =SUM(D64:D84) -> 50

Sheet HT-t-Two-Tail
C1: Mew = population mean = μ | P1: One Tail To Left
C2: Sigma = population standard deviation = s | P2: One Tail To Right
C3: Standard Error = Standard Deviation for the Sampling distribution of Xbar = SE | P3: Two Tail
C4: Hypothesized Value of Population Mean = μ0 = Assumed Value of Population Mean used for testing procedure
C5: sample size = n
C6: Sample Mean = Xbar
C7: Sample Standard Deviation (for when sigma not known) = s
C8: Alpha = a = Risk of rejecting H0 when it is actually true = Type 1 Error
C9: Test Statistic = Used to determine whether to reject H0 and accept Ha = Number of SE above or below hypothesized mean
C10: Use z test statistic if Sigma known or can be estimated, or you are significance Testing a Proportion and all 4 binomial tests have been met
C11: Use t test statistic if Sigma NOT known or can be estimated
C13: A report stated that the national mean price for a used cars is $9500. You want to dertermine if the Seattle area mean price of a used cars is differenet from the national mean. At an alpha of 0.01, is the mean price for a Seattle used cars different from the national average?
C15: Hypothesis Test (Significance Test)
C16: Point of view: | D16: Seattle Area Resercher who wants to compare national mean used car price to Seattle's
C17: Considering: | D17: Population of Seattle Used Car Prices
C18: Goal: | D18: Run Hypothesis test to provide statistical evidence to determine whether Seattle
D19: used auto prices different from national mean
C20: Step 1: List H0 and Ha | D20: H0 : μ
A21: Car Price | D21: Ha : μ
A22: 11696
A23: 13251 | C23: Step 2: Select Alpha | D23: Alpha = | F23: Alpha = a = Risk of rejecting H0 when it is actually true = Type 1 Error
A24: 12482
A25: 11102 | C25: Step 3: Draw Picture, Collect Data, Calculate Sample Statistics, Calculate Test Statistic
A26: 8062 | C26: Hypothesized Mean = μ0 =
A27: 10275 | C27: Sigma = s =
A28: 6065 | C28: Sample SD = s
A29: 5321 | C29: Test Statistic To Use: | F29: =IF(D29="","",IF(D29="z","Because Sigma Known",IF(D29="t","Because Sigma NOT Known","Please Enter a z or t"))) -> 
A30: 10555 | C30: sample size = n | E30: df
A31: 10013 | C31: Sample Mean = Xbar
A32: 8049 | C32: Alpha = a =
A33: 9321 | C33: Type of Test
A34: 7024 | C34: SE | F34: =IF(D29="","",IF(D29="z"," =Sigma/SQRT(n)",IF(D29="t"," =s/SQRT(n)",IF(OR(D29<>"z",D29<>"t"),".")))) ->  | H34: Standard Error = Standard Deviation for the Sampling distribution of Xbar = SE
A35: 6448 | C35: ="Test Statistic = "&IF(D29="z","z",IF(D29="t","t",""))&" =" -> Test Statistic = = | F35: =(Xbar - μ0)/SE | H35: Sample Error in numerator, Standard Deviations in Denominator = "How Many SD above or below Hypothesized Pop Mean
A36: 10715
A37: 10854 | C37: Step 4: Create p-value Rejection Rule and calculate p-value
A38: 9368 | C38: Rejection Rule: | D38: p-value <= alpha, Reject H0 and accept Ha , otherwise Fail to Reject H0
A39: 6017 | C39: p-value Two Tail | F39: =(1-T.DIST(t,df,1))*2 | I39: Probability of getting Test Statistic or higher
A40: 14177 | F40: =T.DIST.2T(ABS(t),df) | I40: ABS(t) because T.DIST.2T needs upper t
A41: 10326 | C41: Step 4: Calculate Critical Value and Critical Value Rejection Rule
A42: 12576 | C42: Rejection Rule: | D42: =-Critical Value < Test Statistic < +Critical Value, Fail to Reject H0 , otherwsie Reject H0 and accept Ha
A43: 6251 | C43: Lower Critical Value | F43: =T.INV(alpha/2,df) | J43: =-T.INV.2T(alpha,df) | L43: This is the hurdle Point
A44: 6995 | C44: Upper Critical Value | F44: =-T.INV(alpha/2,df) | J44: =T.INV.2T(alpha,df)
A45: 10682
A46: 10477 | C46: Step 5: Write Conclusion
A47: 10943 | C47: Because our p-value is bigger than our alpha, we Fail to Reject H0.
A48: 8483 | C48: Because our test statistic is between our critical values, we Fail to Reject H0.
A49: 13148 | C49: The sample evidence does not suggest that the mean price for a used car in the Seattle area is different
A50: 8954 | C50: from the national average.
A51: 9210 | C51: At a 0.01 significance level, our sample mean of $9923 does not provide statistical evidences to show that
A52: 7960 | C52: the mean Seattle used car price is different from the national mean.
A53: 9849 | C53: We do run the risk of a Type 2 Error: Not accepting the alternative hypothesis (mean different from), when
A54: 9001 | C54: in fact it is different from
A55: 12477
A56: 8494
A57: 3741
A58: 8846
A59: 8824
A60: 11815
A61: 13603
A62: 10410
A63: 8005
A64: 7886
A65: 9597
A66: 9856
A67: 12472
A68: 6851
A69: 9488
A70: 7359
A71: 11092
A72: 9383
A73: 11402
A74: 11531
A75: 12802
A76: 12078
A77: 6545
A78: 13161
A79: 8659
A80: 13203
A81: 13937
A82: 9603
A83: 7932
A84: 12777
A85: 7650
A86: 10793
A87: 15008
A88: 6439
A89: 11576
A90: 14726
A91: 10480
A92: 7696
A93: 11156
A94: 8900
A95: 10322
A96: 9966

Sheet HT-t-Two-Tail (an)
C1: Mew = population mean = μ | P1: One Tail To Left
C2: Sigma = population standard deviation = s | P2: One Tail To Right
C3: Standard Error = Standard Deviation for the Sampling distribution of Xbar = SE | P3: Two Tail
C4: Hypothesized Value of Population Mean = μ0 = Assumed Value of Population Mean used for testing procedure
C5: sample size = n
C6: Sample Mean = Xbar
C7: Sample Standard Deviation (for when sigma not known) = s
C8: Alpha = a = Risk of rejecting H0 when it is actually true = Type 1 Error
C9: Test Statistic = Used to determine whether to reject H0 and accept Ha = Number of SE above or below hypothesized mean
C10: Use z test statistic if Sigma known or can be estimated, or you are significance Testing a Proportion and all 4 binomial tests have been met
C11: Use t test statistic if Sigma NOT known or can be estimated
C13: A report stated that the national mean price for a used cars is $9500. You want to dertermine if the Seattle area mean price of a used cars is differenet from the national mean. At an alpha of 0.01, is the mean price for a Seattle used cars different from the national average?
C15: Hypothesis Test (Significance Test)
B16: . | C16: Point of view: | D16: Seattle Area Resercher who wants to compare national mean used car price to Seattle's
B17: . | C17: Considering: | D17: Population of Seattle Used Car Prices
B18: . | C18: Goal: | D18: Run Hypothesis test to provide statistical evidence to determine whether Seattle
B19: =IF(B18=".",B18,"") -> . | D19: used auto prices different from national mean
C20: Step 1: List H0 and Ha | D20: H0 : μ | E20: = | F20: =D26 -> 9500 | G20: Mean Used Car price
A21: Car Price | D21: Ha : μ | E21: <> | F21: =D26 -> 9500 | G21: Mean Used Car price
A22: 11696
A23: 13251 | C23: Step 2: Select Alpha | D23: Alpha = | E23: 0.01 | F23: Alpha = a = Risk of rejecting H0 when it is actually true = Type 1 Error
A24: 12482
A25: 11102 | C25: Step 3: Draw Picture, Collect Data, Calculate Sample Statistics, Calculate Test Statistic
A26: 8062 | C26: Hypothesized Mean = μ0 = | D26: 9500
A27: 10275 | C27: Sigma = s = | D27: NA
A28: 6065 | C28: Sample SD = s | D28: =_xlfn.STDEV.S(A22:A96) -> 2405.902209
A29: 5321 | C29: Test Statistic To Use: | D29: t | F29: =IF(D29="","",IF(D29="z","Because Sigma Known",IF(D29="t","Because Sigma NOT Known","Please Enter a z or t"))) -> Because Sigma NOT Known
A30: 10555 | C30: sample size = n | D30: =COUNT(A22:A96) -> 75 | E30: df | F30: =D30-1 -> 74
A31: 10013 | C31: Sample Mean = Xbar | D31: =AVERAGE(A22:A96) -> 9922.546667
A32: 8049 | C32: Alpha = a = | D32: =E23 -> 0.01
A33: 9321 | C33: Type of Test | D33: Two Tail
A34: 7024 | C34: SE | D34: =D28/SQRT(D30) -> 277.8096576 | F34: =IF(D29="","",IF(D29="z"," =Sigma/SQRT(n)",IF(D29="t"," =s/SQRT(n)",IF(OR(D29<>"z",D29<>"t"),".")))) -> =s/SQRT(n) | H34: Standard Error = Standard Deviation for the Sampling distribution of Xbar = SE
A35: 6448 | C35: ="Test Statistic = "&IF(D29="z","z",IF(D29="t","t",""))&" =" -> Test Statistic = t = | D35: =(D31-D26)/D34 -> 1.520993439 | F35: =(Xbar - μ0)/SE | H35: Sample Error in numerator, Standard Deviations in Denominator = "How Many SD above or below Hypothesized Pop Mean
A36: 10715
A37: 10854 | C37: Step 4: Create p-value Rejection Rule and calculate p-value
A38: 9368 | C38: Rejection Rule: | D38: p-value <= alpha, Reject H0 and accept Ha , otherwise Fail to Reject H0
A39: 6017 | C39: p-value Two Tail | D39: =(1-_xlfn.T.DIST(D35,F30,1))*2 -> 0.1325231876 | F39: =(1-T.DIST(t,df,1))*2 | I39: Probability of getting Test Statistic or higher
A40: 14177 | D40: =_xlfn.T.DIST.2T(ABS(D35),F30) -> 0.1325231876 | F40: =T.DIST.2T(ABS(t),df) | I40: ABS(t) because T.DIST.2T needs upper t
A41: 10326 | C41: Step 4: Calculate Critical Value and Critical Value Rejection Rule
A42: 12576 | C42: Rejection Rule: | D42: =-Critical Value < Test Statistic < +Critical Value, Fail to Reject H0 , otherwsie Reject H0 and accept Ha
A43: 6251 | C43: Lower Critical Value | D43: =_xlfn.T.INV(D32/2,F30) -> -2.643912872 | F43: =T.INV(alpha/2,df) | I43: =-I44 -> -2.643912872 | J43: =-T.INV.2T(alpha,df) | L43: This is the hurdle Point
A44: 6995 | C44: Upper Critical Value | D44: =-D43 -> 2.643912872 | F44: =-T.INV(alpha/2,df) | I44: =_xlfn.T.INV.2T(D32,F30) -> 2.643912872 | J44: =T.INV.2T(alpha,df)
A45: 10682
A46: 10477 | C46: Step 5: Write Conclusion
A47: 10943 | B47: . | C47: Because our p-value is bigger than our alpha, we Fail to Reject H0.
A48: 8483 | B48: . | C48: Because our test statistic is between our critical values, we Fail to Reject H0.
A49: 13148 | B49: . | C49: The sample evidence does not suggest that the mean price for a used car in the Seattle area is different
A50: 8954 | B50: =IF(B49=".",B49,"") -> . | C50: from the national average.
A51: 9210 | B51: . | C51: At a 0.01 significance level, our sample mean of $9923 does not provide statistical evidences to show that
A52: 7960 | B52: =IF(B51=".",B51,"") -> . | C52: the mean Seattle used car price is different from the national mean.
A53: 9849 | B53: . | C53: We do run the risk of a Type 2 Error: Not accepting the alternative hypothesis (mean different from), when
A54: 9001 | B54: =IF(B53=".",B53,"") -> . | C54: in fact it is different from
A55: 12477
A56: 8494
A57: 3741
A58: 8846
A59: 8824
A60: 11815
A61: 13603
A62: 10410
A63: 8005
A64: 7886
A65: 9597
A66: 9856
A67: 12472
A68: 6851
A69: 9488
A70: 7359
A71: 11092
A72: 9383
A73: 11402
A74: 11531
A75: 12802
A76: 12078
A77: 6545
A78: 13161
A79: 8659
A80: 13203
A81: 13937
A82: 9603
A83: 7932
A84: 12777
A85: 7650
A86: 10793
A87: 15008
A88: 6439
A89: 11576
A90: 14726
A91: 10480
A92: 7696
A93: 11156
A94: 8900
A95: 10322
A96: 9966

Sheet SummaryTFunctions
A1: 1-Tail To Right - Upper
A2: Hypothesized Mean = μ0 = | B2: 250
A3: Sample SD = s | B3: 5.198900983
A4: sample size = n | B4: 15
A5: df | C5: =n-NumberOfSamples
A6: Sample Mean = Xbar | B6: 255.2
A7: Alpha = a = | B7: 0.01
A8: SE | C8: =s/SQRT(n) | F8: Standard Error = Standard Deviation for the Sampling distribution of Xbar = SE
A9: Test Statistic = t = | C9: =(Xbar - μ0)/SE | F9: Sample Error in numerator, Standard Deviations in Denominator = "How Many SD above or below Hypothesized Pop Mean
A10: Rejection Rule: p-value <= alpha, Reject H0 and accept Ha , otherwise Fail to Reject H0
A11: p-value One Tail To Right | C11: =1-T.DIST(t,df,1) | G11: Probability of getting Test Statistic or higher
A12: p-value One Tail To Right | C12: =T.DIST.RT(t,df)
A13: Rejection Rule: Test Statistic >= Critical Value, Reject H0 and accept Ha , otherwise Fail to Reject H0
A14: Critical Value One Tail To Right | C14: =T.INV(1-alpha,df) | G14: This is the hurdle Point
A16: 1-Tail To Left - Lower
A17: Hypothesized Mean = μ0 = | B17: 15.5
A18: Sample SD = s | B18: 4.478405784
A19: sample size = n | B19: 50
A20: df | B20: =B19-1 -> 49 | C20: =n-NumberOfSamples
A21: Sample Mean = Xbar | B21: 14.902
A22: Alpha = a = | B22: 0.05
A23: SE | B23: =B18/SQRT(B19) -> 0.6333422198 | C23: =s/SQRT(n) | F23: Standard Error = Standard Deviation for the Sampling distribution of Xbar = SE
A24: Test Statistic = t = | B24: =(B21-B17)/B23 -> -0.9441972781 | C24: =(Xbar - μ0)/SE | F24: Sample Error in numerator, Standard Deviations in Denominator = "How Many SD above or below Hypothesized Pop Mean
A25: Rejection Rule: p-value <= alpha, Reject H0 and accept Ha , otherwise Fail to Reject H0
A26: p-value One Tail To Left | C26: =T.DIST(t,df,1) | G26: Probability of getting Test Statistic or lower
A27: Rejection Rule: Test Statistic <= Critical Value, Reject H0 and accept Ha , otherwise Fail to Reject H0
A28: Critical Value One Tail To Left | C28: =T.INV(alpha,df) | G28: This is the hurdle Point
A31: Two Tail
A32: Hypothesized Mean = μ0 = | B32: 9500
A33: Sample SD = s | B33: 2405.902209
A34: sample size = n | B34: 75 | C34: df | D34: 74
A35: df | B35: =B34-1 -> 74 | C35: =n-NumberOfSamples
A36: Sample Mean = Xbar | B36: 9922.546667
A37: Alpha = a = | B37: 0.01
A38: SE | B38: =B33/SQRT(B34) -> 277.8096576 | C38: =s/SQRT(n) | F38: Standard Error = Standard Deviation for the Sampling distribution of Xbar = SE
A39: Test Statistic = t = | B39: =(B36-B32)/B38 -> 1.520993439 | C39: =(Xbar - μ0)/SE | F39: Sample Error in numerator, Standard Deviations in Denominator = "How Many SD above or below Hypothesized Pop Mean
A40: Rejection Rule: p-value <= alpha, Reject H0 and accept Ha , otherwise Fail to Reject H0
A41: p-value Two Tail | C41: =(1-T.DIST(t,df,1))*2 | G41: Probability of getting Test Statistic or higher
A42: p-value Two Tail | C42: =T.DIST.2T(ABS(t),df) | G42: ABS(t) because T.DIST.2T needs upper t
A43: Rejection Rule: Test Statistic <= Critical Value, Reject H0 and accept Ha , otherwise Fail to Reject H0
A44: Lower Critical Value | C44: =T.INV(alpha/2,df)
A45: Upper Critical Value | C45: =-T.INV(alpha/2,df)
A47: Lower Critical Value | C47: =-T.INV.2T(alpha,df)
A48: Upper Critical Value | C48: =T.INV.2T(alpha,df)

Sheet SummaryTFunctions (an)
A1: 1-Tail To Right - Upper
A2: Hypothesized Mean = μ0 = | B2: 250
A3: Sample SD = s | B3: 5.198900983
A4: sample size = n | B4: 15
A5: df | B5: =B4-1 -> 14 | C5: =n-NumberOfSamples
A6: Sample Mean = Xbar | B6: 255.2
A7: Alpha = a = | B7: 0.01
A8: SE | B8: =B3/SQRT(B4) -> 1.342350462 | C8: =s/SQRT(n) | F8: Standard Error = Standard Deviation for the Sampling distribution of Xbar = SE
A9: Test Statistic = t = | B9: =(B6-B2)/B8 -> 3.873802072 | C9: =(Xbar - μ0)/SE | F9: Sample Error in numerator, Standard Deviations in Denominator = "How Many SD above or below Hypothesized Pop Mean
A10: Rejection Rule: p-value <= alpha, Reject H0 and accept Ha , otherwise Fail to Reject H0
A11: p-value One Tail To Right | B11: =1-_xlfn.T.DIST(B9,B5,1) -> 0.0008432753129 | C11: =1-T.DIST(t,df,1) | G11: Probability of getting Test Statistic or higher
A12: p-value One Tail To Right | B12: =_xlfn.T.DIST.RT(B9,B5) -> 0.0008432753129 | C12: =T.DIST.RT(t,df)
A13: Rejection Rule: Test Statistic >= Critical Value, Reject H0 and accept Ha , otherwise Fail to Reject H0
A14: Critical Value One Tail To Right | B14: =_xlfn.T.INV(1-B7,B5) -> 2.624494068 | C14: =T.INV(1-alpha,df) | G14: This is the hurdle Point
A16: 1-Tail To Left - Lower
A17: Hypothesized Mean = μ0 = | B17: 15.5
A18: Sample SD = s | B18: 4.478405784
A19: sample size = n | B19: 50
A20: df | B20: =B19-1 -> 49 | C20: =n-NumberOfSamples
A21: Sample Mean = Xbar | B21: 14.902
A22: Alpha = a = | B22: 0.05
A23: SE | B23: =B18/SQRT(B19) -> 0.6333422198 | C23: =s/SQRT(n) | F23: Standard Error = Standard Deviation for the Sampling distribution of Xbar = SE
A24: Test Statistic = t = | B24: =(B21-B17)/B23 -> -0.9441972781 | C24: =(Xbar - μ0)/SE | F24: Sample Error in numerator, Standard Deviations in Denominator = "How Many SD above or below Hypothesized Pop Mean
A25: Rejection Rule: p-value <= alpha, Reject H0 and accept Ha , otherwise Fail to Reject H0
A26: p-value One Tail To Left | B26: =_xlfn.T.DIST(B24,B20,1) -> 0.1748507222 | C26: =T.DIST(t,df,1) | G26: Probability of getting Test Statistic or lower
A27: Rejection Rule: Test Statistic <= Critical Value, Reject H0 and accept Ha , otherwise Fail to Reject H0
A28: Critical Value One Tail To Left | B28: =_xlfn.T.INV(B22,B20) -> -1.676550893 | C28: =T.INV(alpha,df) | G28: This is the hurdle Point
A31: Two Tail
A32: Hypothesized Mean = μ0 = | B32: 9500
A33: Sample SD = s | B33: 2405.902209
A34: sample size = n | B34: 75 | C34: df | D34: 74
A35: df | B35: =B34-1 -> 74 | C35: =n-NumberOfSamples
A36: Sample Mean = Xbar | B36: 9922.546667
A37: Alpha = a = | B37: 0.01
A38: SE | B38: =B33/SQRT(B34) -> 277.8096576 | C38: =s/SQRT(n) | F38: Standard Error = Standard Deviation for the Sampling distribution of Xbar = SE
A39: Test Statistic = t = | B39: =(B36-B32)/B38 -> 1.520993439 | C39: =(Xbar - μ0)/SE | F39: Sample Error in numerator, Standard Deviations in Denominator = "How Many SD above or below Hypothesized Pop Mean
A40: Rejection Rule: p-value <= alpha, Reject H0 and accept Ha , otherwise Fail to Reject H0
A41: p-value Two Tail | B41: =(1-_xlfn.T.DIST(B39,B35,1))*2 -> 0.1325231876 | C41: =(1-T.DIST(t,df,1))*2 | G41: Probability of getting Test Statistic or higher
A42: p-value Two Tail | B42: =_xlfn.T.DIST.2T(ABS(B39),B35) -> 0.1325231876 | C42: =T.DIST.2T(ABS(t),df) | G42: ABS(t) because T.DIST.2T needs upper t
A43: Rejection Rule: Test Statistic <= Critical Value, Reject H0 and accept Ha , otherwise Fail to Reject H0
A44: Lower Critical Value | B44: =_xlfn.T.INV(B37/2,B35) -> -2.643912872 | C44: =T.INV(alpha/2,df)
A45: Upper Critical Value | B45: =-B44 -> 2.643912872 | C45: =-T.INV(alpha/2,df)
A47: Lower Critical Value | B47: =-B48 -> -2.643912872 | C47: =-T.INV.2T(alpha,df)
A48: Upper Critical Value | B48: =_xlfn.T.INV.2T(B37,B35) -> 2.643912872 | C48: =T.INV.2T(alpha,df)

Sheet Proportion
A1: The School Newspaper stated that the proportion of students who knew when the presidential election would be held was 15%. A researcher thought that this was low and wanted to show that the proportion of students who knew when the presidential election would be held is higher than 15%. The researcher took a random sample and made sure that he got respondents from all of the different demographics, including night students, online students, new immigrants and others. At alpha = 0.01, can the researcher conclude that more than 15% of the students know when the presidential election will be held?
A3: Knew When Election Was | C3: Binomial?
A4: No | C4: Fixed Number of Trials? | D4: Yes
A5: No | C5: Prob stays same each time | D5: Yes | E5: Yes or No
A6: No | C6: Trials are independent | D6: Yes | E6: (randomly selected and not all grouped together by similar traits)
A7: Yes | C7: Each Trial result in success or not success | D7: Yes | E7: Yes or No
A8: No | C8: Assume True: n*p >= 5 | D8: =D17*D12 -> 22.8 | E8: =IF(D8>=5,"Yes","No") -> Yes
A9: No | C9: Assume True: n*(1-p) >= 5 | D9: =(1-D12)*D17 -> 129.2 | E9: Yes
A10: Yes | C10: Success = | D10: Yes | E10: Know when election is
A11: No | C11: Not Success | D11: No | E11: Does not know
A12: No | C12: Hypothesized Pop Proportion = p0 = | D12: 0.15
A13: No | B13: . | C13: Point of view: | D13: Researcher who was skeptical of reported proportion of the number students know when the presidential election is
A14: No | B14: . | C14: Goal: | D14: Test to see if there is significantly more than 15% of the students who know when the
A15: Yes | B15: =IF(B14="","",".") -> . | D15: presidential election will be held.
A16: No | C16: Test: | D16: >>>>>>> 1 tail to right
A17: No | C17: n = students | D17: =COUNTA(A4:A155) -> 152 | F17: =COUNTA(A4:A155) | G17: Relative Frequency from Chapter 2
A18: Yes | C18: ="Count for "&D10 -> Count for Yes | F18: =COUNTIF($A$4:$A$155,D10) | G18: Relative Frequency from Chapter 2
A19: No | C19: ="Count for "&D11 -> Count for No | F19: =COUNTIF($A$4:$A$155,D11)
A20: Yes | C20: ="Prob("&D10&")" -> Prob(Yes) | F20: =D18/$D$17
A21: No | C21: ="Prob("&D11&")" -> Prob(No) | F21: =D19/$D$17
A22: No
A23: No | C23: Step 1:
A24: No | C24: H0 : p
A25: No | C25: Ha : p
A26: No
A27: No | C27: Step 2: | D27: alpha
A28: Yes
A29: No | C29: Step 3: Draw Picture, Collect Data, Calculate Sample Statistics, Calculate Test Statistic
A30: No | C30: =C20&" = Pbar =" -> Prob(Yes) = Pbar =
A31: Yes | C31: SE | F31: =SQRT(p0*(1-p0)/n)
A32: No | C32: Test Statistic = z | F32: =(Pbar - p0)/SE
A33: Yes
A34: No | C34: Step 4: Create p-value Rejection Rule and calculate p-value
A35: No | C35: Rejection Rule: | D35: p-value <= alpha, Reject H0 and accept Ha , otherwise Fail to Reject H0
A36: Yes | C36: p-value One Tail To Right | F36: =1-NORM.S.DIST(z,1)
A37: No
A38: No | C38: Step 4: Calculate Critical Value and Critical Value Rejection Rule
A39: No | C39: Rejection Rule: | D39: Test Statistic >= Critical Value, Reject H0 and accept Ha , otherwise Fail to Reject H0
A40: Yes | C40: Critical Value One Tail To Right | F40: =NORM.S.INV(1-E27)
A41: No
A42: No | C42: Step 5: Write Conclusion
A43: Yes | B43: . | C43: Because the p-value of 0.0014 is less than or equal to our alpha of 0.01, we Reject H0 and accept Ha
A44: No | B44: . | C44: Because the Test Statistics of 2.998 is greater than or equal to our Critical Value of 2.33, we Reject H0 and accept Ha
A45: Yes | B45: . | C45: There is strong statistical evidence to support the claim that more than 15% of the students know when the presidential election will be held.
A46: No | B46: . | C46: At an alpha of 0.01, our sample proportion of 0.24 provides very strong statistical evidence to suggest that more than 15% of the
A47: No | B47: =IF(B46="","",".") -> . | C47: students know when the presidential election will be held.
A48: No | B48: . | C48: We do run 1% Type 1 Error risk of saying that more than 15% of the students know when the election will be, when they in fact do not know.
A49: No
A50: No
A51: No
A52: Yes
A53: Yes
A54: No
A55: Yes
A56: No
A57: No
A58: No
A59: No
A60: Yes
A61: No
A62: No
A63: No
A64: Yes
A65: Yes
A66: No
A67: No
A68: No
A69: No
A70: No
A71: Yes
A72: No
A73: No
A74: No
A75: No
A76: No
A77: No
A78: No
A79: No
A80: No
A81: No
A82: Yes
A83: No
A84: No
A85: No
A86: No
A87: Yes
A88: No
A89: No
A90: No
A91: Yes
A92: No
A93: No
A94: No
A95: No
A96: No
A97: No
A98: Yes
A99: No
A100: No
A101: No
A102: No
A103: No
A104: Yes
A105: No
A106: No
A107: No
A108: Yes
A109: No
A110: No
A111: No
A112: No
A113: Yes
A114: No
A115: No
A116: No
A117: Yes
A118: Yes
A119: No
A120: No
A121: No
A122: No
A123: No
A124: Yes
A125: No
A126: No
A127: No
A128: No
A129: Yes
A130: No
A131: No
A132: No
A133: No
A134: No
A135: Yes
A136: No
A137: No
A138: No
A139: No
A140: Yes
A141: No
A142: No
A143: No
A144: Yes
A145: No
A146: Yes
A147: No
A148: Yes
A149: Yes
A150: No
A151: No
A152: No
A153: No
A154: No
A155: No

Sheet Proportion (an)
A1: The School Newspaper stated that the proportion of students who knew when the presidential election would be held was 15%. A researcher thought that this was low and wanted to show that the proportion of students who knew when the presidential election would be held is higher than 15%. The researcher took a random sample and made sure that he got respondents from all of the different demographics, including night students, online students, new immigrants and others. At alpha = 0.01, can the researcher conclude that more than 15% of the students know when the presidential election will be held?
A3: Knew When Election Was | C3: Binomial?
A4: No | C4: Fixed Number of Trials? | D4: Yes
A5: No | C5: Prob stays same each time | D5: Yes | E5: Yes or No
A6: No | C6: Trials are independent | D6: Yes | E6: (randomly selected and not all grouped together by similar traits)
A7: Yes | C7: Each Trial result in success or not success | D7: Yes | E7: Yes or No
A8: No | C8: Assume True: n*p >= 5 | D8: =D17*D12 -> 22.8 | E8: =IF(D8>=5,"Yes","No") -> Yes
A9: No | C9: Assume True: n*(1-p) >= 5 | D9: =(1-D12)*D17 -> 129.2 | E9: Yes
A10: Yes | C10: Success = | D10: Yes | E10: Know when election is
A11: No | C11: Not Success | D11: No | E11: Does not know
A12: No | C12: Hypothesized Pop Proportion = p0 = | D12: 0.15
A13: No | B13: . | C13: Point of view: | D13: Researcher who was skeptical of reported proportion of the number students know when the presidential election is
A14: No | B14: . | C14: Goal: | D14: Test to see if there is significantly more than 15% of the students who know when the
A15: Yes | B15: =IF(B14="","",".") -> . | D15: presidential election will be held.
A16: No | C16: Test: | D16: >>>>>>> 1 tail to right
A17: No | C17: n = students | D17: =COUNTA(A4:A155) -> 152 | F17: =COUNTA(A4:A155) | G17: Relative Frequency from Chapter 2
A18: Yes | C18: ="Count for "&D10 -> Count for Yes | D18: =COUNTIF($A$4:$A$155,D10) -> 36 | F18: =COUNTIF($A$4:$A$155,D10) | G18: Relative Frequency from Chapter 2
A19: No | C19: ="Count for "&D11 -> Count for No | D19: =COUNTIF($A$4:$A$155,D11) -> 116 | F19: =COUNTIF($A$4:$A$155,D11)
A20: Yes | C20: ="Prob("&D10&")" -> Prob(Yes) | D20: =D18/$D$17 -> 0.2368421053 | F20: =D18/$D$17
A21: No | C21: ="Prob("&D11&")" -> Prob(No) | D21: =D19/$D$17 -> 0.7631578947 | F21: =D19/$D$17
A22: No
A23: No | C23: Step 1:
A24: No | C24: H0 : p | D24: <= | E24: =D12 -> 0.15
A25: No | C25: Ha : p | D25: > | E25: =D12 -> 0.15
A26: No
A27: No | C27: Step 2: | D27: alpha | E27: 0.01
A28: Yes
A29: No | C29: Step 3: Draw Picture, Collect Data, Calculate Sample Statistics, Calculate Test Statistic
A30: No | C30: =C20&" = Pbar =" -> Prob(Yes) = Pbar = | D30: =D20 -> 0.2368421053
A31: Yes | C31: SE | D31: =SQRT(D12*(1-D12)/D17) -> 0.02896231671 | F31: =SQRT(p0*(1-p0)/n)
A32: No | C32: Test Statistic = z | D32: =(D30-D12)/D31 -> 2.998451613 | F32: =(Pbar - p0)/SE
A33: Yes
A34: No | C34: Step 4: Create p-value Rejection Rule and calculate p-value
A35: No | C35: Rejection Rule: | D35: p-value <= alpha, Reject H0 and accept Ha , otherwise Fail to Reject H0
A36: Yes | C36: p-value One Tail To Right | D36: =1-_xlfn.NORM.S.DIST(D32,1) -> 0.001356776209 | F36: =1-NORM.S.DIST(z,1)
A37: No
A38: No | C38: Step 4: Calculate Critical Value and Critical Value Rejection Rule
A39: No | C39: Rejection Rule: | D39: Test Statistic >= Critical Value, Reject H0 and accept Ha , otherwise Fail to Reject H0
A40: Yes | C40: Critical Value One Tail To Right | D40: =_xlfn.NORM.S.INV(1-E27) -> 2.326347874 | F40: =NORM.S.INV(1-E27)
A41: No
A42: No | C42: Step 5: Write Conclusion
A43: Yes | B43: . | C43: Because the p-value of 0.0014 is less than or equal to our alpha of 0.01, we Reject H0 and accept Ha
A44: No | B44: . | C44: Because the Test Statistics of 2.998 is greater than or equal to our Critical Value of 2.33, we Reject H0 and accept Ha
A45: Yes | B45: . | C45: There is strong statistical evidence to support the claim that more than 15% of the students know when the presidential election will be held.
A46: No | B46: . | C46: At an alpha of 0.01, our sample proportion of 0.24 provides very strong statistical evidence to suggest that more than 15% of the
A47: No | B47: =IF(B46="","",".") -> . | C47: students know when the presidential election will be held.
A48: No | B48: . | C48: We do run 1% Type 1 Error risk of saying that more than 15% of the students know when the election will be, when they in fact do not know.
A49: No
A50: No
A51: No
A52: Yes
A53: Yes
A54: No
A55: Yes
A56: No
A57: No
A58: No
A59: No
A60: Yes
A61: No
A62: No
A63: No
A64: Yes
A65: Yes
A66: No
A67: No
A68: No
A69: No
A70: No
A71: Yes
A72: No
A73: No
A74: No
A75: No
A76: No
A77: No
A78: No
A79: No
A80: No
A81: No
A82: Yes
A83: No
A84: No
A85: No
A86: No
A87: Yes
A88: No
A89: No
A90: No
A91: Yes
A92: No
A93: No
A94: No
A95: No
A96: No
A97: No
A98: Yes
A99: No
A100: No
A101: No
A102: No
A103: No
A104: Yes
A105: No
A106: No
A107: No
A108: Yes
A109: No
A110: No
A111: No
A112: No
A113: Yes
A114: No
A115: No
A116: No
A117: Yes
A118: Yes
A119: No
A120: No
A121: No
A122: No
A123: No
A124: Yes
A125: No
A126: No
A127: No
A128: No
A129: Yes
A130: No
A131: No
A132: No
A133: No
A134: No
A135: Yes
A136: No
A137: No
A138: No
A139: No
A140: Yes
A141: No
A142: No
A143: No
A144: Yes
A145: No
A146: Yes
A147: No
A148: Yes
A149: Yes
A150: No
A151: No
A152: No
A153: No
A154: No
A155: No
